{"text_format":"1","workbook":"xlsx","n_sheets":18,"sheets":["CAPA","Analise mercado","Inovação e Qual. Estrat.e Energ","Inv. Inicial_Inv.Compl_Energia","Construçao e efeito incentivo","Postos Trabalho","CRITERIOS_SELECAO_3.C","CRITERIOS_SELECAO_4.B","taxa base_majorações","VENDAS EXTERIOR","Financiamento","Balanço empresa ","Balanço da empresa pós Proj","D. Resultados empresa","D. Result da empresa pós Proj","Balanço do Projeto","D. Resultados do Projeto","Folha2"],"not_rendered":{"charts":0,"images":53,"macros":0,"external_links":2,"defined_names":71,"comments":3,"pivot_tables":0},"unopened":[],"bounds":{"document_bytes":16777216,"sheet_cells":100000,"rows_first":2000,"rows_last":500,"rows_between":2000,"halvings":0,"cell_chars":16384,"cell_head_chars":4096},"cells_cut":0,"cells_raw":0,"read":"row_number_cap","date_system":"1900"}

{"sheet":"CAPA","index":0,"n_rows":16,"n_cols":14,"rows_kept":16,"cut":false,"hidden":false,"merged":[[8,2,8,17],[11,2,11,5],[15,2,15,11],[15,13,15,17]]}
[null,"V_3_22_01_2021_10_46"]
[]
[]
[]
[]
[]
[null,null,"BENEFICIÁRIO:"]
[]
[]
[]
[null,null,"NIF:"]
[]
[]
[null,null,"SISTEMA DE INCENTIVOS À VALORIZAÇÃO E QUALIFICAÇÃO EMPRESARIAL DA REGIÃO AUTÓNOMA DA MADEIRA:"]
[]
[null,null,"VALORIZAR 2020 - Terceira alteração",null,null,null,null,null,null,null,null,null,null,"Portaria n.º 5/2021, de 7 de janeiro"]

{"sheet":"Analise mercado","index":1,"n_rows":158,"n_cols":13,"rows_kept":158,"cut":false,"hidden":false,"merged":[[120,4,120,14],[136,4,136,14],[137,4,137,14],[4,2,4,14],[7,2,7,5],[11,2,11,14],[14,2,14,15],[58,7,58,10],[19,3,19,14],[26,4,26,14],[79,3,79,14],[103,3,103,14],[58,12,58,14],[83,3,90,4],[69,12,69,14],[69,3,77,4],[155,4,155,9],[106,7,107,7],[83,7,83,10],[157,4,157,9],[156,4,156,7],[109,9,111,9],[92,3,100,4],[92,7,92,10],[106,9,107,9],[154,3,154,13],[134,3,135,14],[113,3,115,4],[113,7,115,7],[113,9,115,9],[109,3,111,4],[109,7,111,7],[69,7,69,10],[83,12,83,14],[92,12,92,14],[60,3,67,4],[60,7,60,10],[60,12,60,14],[81,7,81,10],[81,12,81,14]]}
[]
[]
[null,null,"BENEFICIÁRIO:"]
[]
[null,null,{"$f":"+CAPA!C9","v":0}]
[]
[null,null,"NIF:"]
[null,null,{"$f":"+CAPA!C12","v":0}]
[]
[null,null,"SISTEMA DE INCENTIVOS:"]
[]
[null,null,{"$f":"+CAPA!C16","v":"VALORIZAR 2020 - Terceira alteração"}]
[]
[]
[null,null,"ANÁLISE DO MERCADO"]
[]
[null,null,"  "]
[]
[null,null,null,"Análise do Mercado "]
[null,null,null," - Nesta secção pretende-se a identificação da abrangência comercial da empresa e qual o impacto dos seus produtos no mercado, bem como a descrição de como respondem às necessidades dos seus clientes."]
[null,null,null,"Breve Descrição do Mercado"]
[null,null,null,"-","Quem são e onde estão os atuais clientes da empresa e quem serão e onde estarão no horizonte temporal do projeto? "]
[null,null,null,"-","Que necessidades dos clientes satisfazem os produtos da empresa? Que benefícios procura o consumidor? E que necessidades / benefícios pretendem satisfazer no futuro? "]
[null,null,null,"-","Com que tecnologias satisfazem essas necessidades? Vão passar a utilizar outras? Perspetiva-se alterações de tecnologia? Quais?"]
[null,null,null,"-","Através de que canais de distribuição vendem os produtos/serviços? O que pretendem fazer no futuro sobre os canais de distribuição? "]
[null,null,null,"-","Que fatores influenciam a procura (motivações de compra)? Que tipo de consumidor compra os produtos da concorrência? "]
[null,null,null,"-","Qual a segmentação que faz do mercado? Qual parcela do mercado a sua empresa visa atingir? Com base em que critérios é feita essa divisão do mercado potencial? Como é que esses segmentos são quantificados? "]
[null,null,null,"-","Qual a dimensão atual e potencial do mercado? "]
[]
[]
[]
[]
[]
[]
[]
[]
[]
[]
[]
[]
[null,null,null,"Análise da Concorrência "]
[null,null,null," - Esta seção visa dar a noção da dimensão concorrencial da empresa beneficiária, bem como a sua capacidade de adaptação perante os desafios do mercado. "]
[null,null,null," - ","Identificação os seus concorrentes diretos, que têm como alvos os mesmos segmentos de mercado da sua empresa. "]
[null,null,null," - ","Identificação das áreas de competitividade críticas para o negócio em que a empresa se insere."]
[]
[]
[]
[]
[]
[]
[]
[]
[]
[]
[]
[]
[null,null,null,"Análise SWOT"]
[null,null,null," - Aqui deve inserir nos campos respetivos (Fatores Internos e Externos, Pontos Fracos, Pontos Fortes, Oportunidade e Ameaças) todos os elementos resumo que resultam da sua análise SWOT."]
[]
[]
[null,null,null,"FATORES\nINTERNOS",null,null,null,"PONTOS FORTES",null,null,null,null,"PONTOS FRACOS"]
[]
[]
[]
[]
[]
[]
[]
[]
[null,null,null,"FATORES\nEXTERNOS",null,null,null,"OPORTUNIDADES",null,null,null,null,"AMEAÇAS"]
[]
[]
[]
[]
[]
[]
[]
[]
[]
[null,null,null," - Para além da síntese da análise SWOT indicada no quadro anterior, deve ainda desenvolver uma análise qualificada/dinâmica baseada na referida análise SWOT, identificando: Riscos, Avisos, Desafios/Apostas e Restrições."]
[]
[null,null,null,null,null,null,null,"Oportunidades",null,null,null,null,"Ameaças"]
[]
[null,null,null,"Pontos\nFortes",null,null,null,"Apostas",null,null,null,null,"Avisos"]
[]
[]
[]
[]
[]
[]
[]
[]
[null,null,null,"Pontos\nFracos",null,null,null,"Restrições",null,null,null,null,"Riscos"]
[]
[]
[]
[]
[]
[]
[]
[]
[]
[null,null,null,"Qual a direção de crescimento do mercado"]
[null,null,null," - Neste quadro pretende-se ter a identificação da forma como o beneficiário pretende orientar a sua atividade futura nos mercados, selecionando apenas uma das seguintes opções (cujos conceitos subjacentes se encontram explicados na caixa)."]
[null,null,null," - Justifique a sua direção de crescimento no mercado."]
[]
[null,null,null,null,null,null,null,"PRODUTOS\nATUAIS",null,"PRODUTOS\nNOVOS"]
[]
[]
[null,null,null,"MERCADOS\nATUAIS",null,null,null,"Penetração",null,"Extensão \ndo Produto"]
[]
[]
[]
[null,null,null,"MERCADOS\nNOVOS",null,null,null,"Extensão \ndo Mercado",null,"Diversificação"]
[]
[]
[]
[null,null,null," - Tanto no quadro “Qual a duração de crescimentos no mercado” como na justificação posterior o beneficiário deverá ter em consideração os seguintes conceitos: "]
[null,null,null," - ","Penetração - Aumento das quotas de mercado com os produtos atuais e nos mercados atuais; "]
[null,null,null," - ","Extensão do produto - aumento da gama e/ou criação de novos produtos, mantendo os mercados atuais; "]
[null,null,null," - ","Extensão do mercado - entrada em novos mercados (e.g. entrada ou alargamento do mercado de exportação ou cobertura de mais segmentos no mercado nacional), com os mesmos produtos; "]
[null,null,null," - ","Diversificação - lançamento de novos produtos e, em simultâneo, entrada em novos mercados."]
[]
[]
[]
[]
[]
[]
[]
[]
[]
[]
[]
[null,null,null,"Marcas Próprias (preenchimento quando aplicável) "]
[null,null,null," - Pretende-se a identificação das marcas pertencentes à empresa beneficiária, ou a criar, e caso se encontrem registadas, a indicação de se esse registo é nacional ou internacional. Deverá também identificar a dimensão concorrencial da empresa beneficiária com a indicação das suas marcas e das marcas concorrentes na mesma área de negócio do projeto assim como da sua capacidade de diferenciação/reconhecimento."]
[]
[null,null,null," - ","A empresa detém marca própria? Esta marca está registada em Portugal e noutros mercados? Se não tem marca própria que instrumentos de diferenciação/reconhecimento utiliza no mercado face à concorrência? "]
[null,null,null," - "," Identificação das principais marcas concorrentes e a sua perceção sobre a notoriedade da sua marca e a dos seus concorrentes. Qual o posicionamento que perspetiva para o pós projeto? "]
[]
[]
[]
[]
[]
[]
[]
[]
[]
[]
[]
[]
[]
[]
[]
[null,null,null,"Posicionamento na Cadeia de Valor "]
[null,null,null," - Pretende-se que o beneficiário identifique os impactos previstos com o projeto, nomeadamente, ao nível do posicionamento da cadeia de valor, no pré e pós projeto."]
[null,null,null,null," - Posicionamento na cadeira de valor (atual e perspetiva futura)."]
[null,null,null,null," - Capacidade de agregação de valor."]
[null,null,null,null," - Natureza do posicionamento na cadeia de valor completa."]

{"sheet":"Inovação e Qual. Estrat.e Energ","index":2,"n_rows":150,"n_cols":14,"rows_kept":150,"cut":false,"hidden":false,"merged":[[89,3,89,13],[94,3,94,13],[112,4,112,13],[96,4,96,13],[73,3,73,12],[98,4,98,13],[100,4,100,13],[102,4,102,13],[90,3,90,13],[91,3,91,13],[92,3,92,13],[74,3,74,12],[142,3,142,13],[125,3,125,13],[134,3,134,13],[135,3,135,13],[136,3,136,13],[137,3,137,13],[138,3,138,13],[126,3,126,13],[127,3,127,13],[128,3,128,13],[129,3,129,13],[133,3,133,13],[121,3,121,13],[116,3,116,13],[117,3,117,13],[118,3,118,13],[119,3,119,13],[120,3,120,13],[149,3,149,13],[143,3,143,13],[144,3,144,13],[145,3,145,13],[146,3,146,13],[147,3,147,13],[148,3,148,13],[4,2,4,13],[7,2,7,5],[11,2,11,13],[19,3,19,13],[14,2,15,14],[45,3,45,13],[22,3,22,12],[23,3,23,12],[24,3,24,12],[25,3,25,12]]}
[]
[]
[null,null,"BENEFICIÁRIO:"]
[]
[null,null,{"$f":"+CAPA!C9","v":0}]
[]
[null,null,"NIF:"]
[null,null,{"$f":"+CAPA!C12","v":0}]
[]
[null,null,"SISTEMA DE INCENTIVOS:"]
[]
[null,null,{"$f":"+CAPA!C16","v":"VALORIZAR 2020 - Terceira alteração"}]
[]
[]
[null,null,"INOVAÇÃO E QUALIFICAÇÃO DAS ESTRATÉGIAS EMPRESARIAIS E EFICIÊNCIA ENERGÉTICA E UTILIZAÇÃO DE ENERGIAS RENOVÁVEIS NAS EMPRESAS"]
[]
[null,null,"  "]
[]
[null,null,null,"Fundamentação do enquadramento do projeto na área prioritária (de acordo com o artigo 7º )."]
[null,null,null,"(ATENÇÃO: A área prioritária Qualificação das estratégias empresariais através da aplicação de novos métodos e processos inovadores, terá de estar obrigatoriamente associada a uma tipologia de inovação nos termos da inovação empresarial.)"]
[null,null,null,"a) Inovação empresarial, a qual inclui as seguintes tipologias"]
[null,null,null,null,null,null,null,null,null,null,null,null,null,"inserir x"]
[null,null,null,"i. Produção de novos bens e serviços ou melhorias significativas da produção atual;"]
[null,null,null,"ii. Adoção de novos, ou significativamente melhorados, processos ou métodos de fabrico; "]
[null,null,null,"iii. Adoção de novos métodos organizacionais ou novas filosofias de organização do trabalho e reforço das capacidades de gestão, excluindo as alterações que se baseiem em métodos de organização já utilizados na empresa;"]
[null,null,null,"iv. Adoção de novos métodos de marketing com mudanças significativas na conceção do produto ou na sua embalagem, no posicionamento do produto, na sua promoção ou na fixação de preços, excluindo as alterações que se baseiem em métodos de marketing já previamente utilizados pela empresa."]
[]
[null,null,null,"Deve ser apresentada a situação da empresa anterior ao projeto e os efeitos esperados do mesmo em cada uma das áreas de intervenção."]
[]
[]
[]
[]
[]
[]
[]
[]
[]
[]
[]
[]
[]
[]
[]
[]
[]
[null,null,null,"b) Qualificação das estratégias empresariais através da aplicação de novos métodos e processos inovadores, a qual inclui as seguintes tipologias: "]
[null,null,null,null,null,null,null,null,null,null,null,null,null,"inserir x"]
[null,null,null,"i. Economia digital e tecnologias de informação e comunicação (TIC)"]
[null,null,null,"ii. Criação de marcas e design"]
[null,null,null,"iii. Desenvolvimento e engenharia de produtos, serviços e processos       "]
[null,null,null,"iv.Proteção de propriedade industrial     "]
[null,null,null,"v. Qualidade     "]
[null,null,null,"vi. Transferência de conhecimento     "]
[null,null,null,"vii. Distribuição e logística       "]
[null,null,null,"viii. Eco-Inovação"]
[]
[null,null,null,"Deve ser apresentada a situação da empresa anterior ao projeto e os efeitos esperados do mesmo em cada uma das áreas de intervenção."]
[]
[]
[]
[]
[]
[]
[]
[]
[]
[]
[]
[]
[]
[null,null,null,null,null,null,null,null,null,null,null,null,null,"inserir x"]
[]
[]
[null,null,null,"c) Eficiência energética e utilização de energias renováveis nas empresas, incluindo operações enquadradas na iniciativa “Smart Fossil Free Island”, nos termos da Resolução n.º 263/2016 de 20 de maio.                                                                                                                                                                         Deve ser apresentada a situação da empresa anterior ao projeto e os efeitos esperados do mesmo com a implementação do projeto"]
[null,null,null,"No caso de a isenção da obrigatoriedade de certificação energético o benefeciário deverá invocar o artigo pelo qual está isento."]
[]
[]
[]
[]
[]
[]
[]
[]
[]
[]
[]
[]
[null,null,null,"CONCEITOS A TER EM ATENÇÃO"]
[]
[null,null,null,"«Grau de novidade», em função do grau de novidade, existe: inovação para a empresa; inovação para o mercado regional e inovação para o mercado nacional/internacional. O primeiro conceito abrange a difusão de uma inovação existente para uma empresa - a inovação pode já ter sido implementado por outras empresas, mas é novo para a empresa. As inovações são novas para o mercado regional quando a empresa é a primeira a introduzir a inovação no seu mercado. Uma inovação é nova para o mercado nacional/internacional, quando a empresa é a primeira a introduzir a inovação nesses mercados;"]
[null,null,null,"Novo apenas para a empresa: o requisito mínimo para se considerar uma inovação é que a mudança introduzida tenha sido nova para a empresa. A inovação pode já ter sido implementada por outras empresas, mas é nova para a empresa."]
[null,null,null,"Novo para o mercado regional: empresa introduz inovação no mercado da Região Autónoma da Madeira. "]
[null,null,null,"Novo para o mercado nacional e internacional: a empresa introduz inovação com o grau de novidade ao nível nacional ou internacional."]
[]
[null,null,null,"«Tipologias de inovação», diferenciam-se quatro tipos de inovação:"]
[]
[null,null,null,null,"i) «Inovação de produto/serviço», a introdução de um novo ou significativamente melhorado produto ou serviço, incluindo alterações significativas nas suas especificações técnicas, componentes e materiais, software incorporado, facilidade de uso ou outras características funcionais. O termo “produto” abrange tanto bens como serviços; "]
[]
[null,null,null,null,"ii) «Inovação de processo», a implementação de um novo ou significativamente melhorado processo ou método de produção de bens e serviços, de logística e de distribuição;"]
[]
[null,null,null,null,"iii) «Inovação de marketing», a implementação de um novo método de marketing com mudanças significativas no design do produto ou na sua embalagem, ou na sua promoção e distribuição;"]
[]
[null,null,null,null,"iv) «Inovação organizacional», a aplicação de um novo método organizacional na prática do negócio, na organização do local de trabalho ou nas relações externas de uma empresa."]
[]
[null,null,null,"Não se considera inovação:"]
[]
[null,null,null,null,"i) Pequenas alterações ou melhorias, aumentos de capacidade de produção similares a processos já existentes na empresa;"]
[]
[null,null,null,null,"ii) Investimentos de substituição ou decorrentes do encerramento de um processo produtivo;"]
[]
[null,null,null,null,"iii) Investimentos em processos resultantes de alterações de preços, customização e alterações cíclicas ou sazonais;"]
[]
[null,null,null,null,"iv) Investimentos para a comercialização de novos produtos ou significativamente melhorados e investimentos de inovação de processos associados a alterações estratégicas de gestão ou aquisições e fusões;"]
[]
[null,null,null,"Inovação de Produto "]
[]
[null,null,null,"Uma Inovação de Produto é a introdução de um bem ou serviço novo ou significativamente melhorado no que concerne às suas características ou usos previstos. Incluem-se neste tipo de inovação melhoramentos significativos em especificações técnicas, componentes e materiais, software incorporado, facilidade de uso ou outras características funcionais. "]
[null,null,null,"As inovações de produto podem utilizar novos conhecimentos ou tecnologias, ou podem basear-se em novos usos ou combinações de conhecimentos ou tecnologias existentes. O termo “produto” abrange tanto bens como serviços. As inovações de produto incluem a introdução de novos bens e serviços, e melhoramentos significativos nas características funcionais ou de uso dos bens e serviços existentes. "]
[null,null,null,"Melhoramentos significativos para produtos existentes podem ocorrer por meio de mudanças em materiais, componentes e outras características que aprimoram o seu desempenho. A introdução dos travões ABS, dos sistemas de navegação GPS (Global Positioning System), ou outras melhorias em subsistemas de automóveis são exemplos de inovações de produto baseadas em mudanças parciais ou na adição de um subsistema em vários subsistemas técnicos integrados. O uso de tecidos respiráveis em vestuário é um exemplo de uma inovação de produto que utiliza novos materiais, capazes de melhorar o desempenho do produto. "]
[null,null,null,"As inovações de produtos no setor de serviços podem incluir melhoramentos importantes no que diz respeito a como eles são oferecidos (por exemplo, em termos de eficiência ou de rapidez e qualidade), a adição de novas funções ou características em serviços existentes, ou a introdução de serviços inteiramente novos. São exemplos, as melhorias significativas em serviços via internet, tais como um grande aumento na velocidade e na facilidade de uso, ou a introdução de serviços que melhoram o acesso dos clientes. "]
[null,null,null,"A conceção é parte integrante do desenvolvimento e da implementação de inovações de produto. Todavia, mudanças na conceção que não implicam uma mudança significativa nas características funcionais do produto ou nos seus usos previstos não são inovações de produto. Ainda assim, elas podem ser inovações de marketing, como será abaixo referido. "]
[null,null,null,"Atualizações de rotina ou mudanças sazonais não configuram inovações de produto."]
[]
[null,null,null,"Inovação de Processo"]
[]
[null,null,null,"Uma Inovação de Processo é a implementação de um método de produção ou distribuição novo ou significativamente melhorado. Incluem-se neste tipo de inovação as mudanças significativas, as técnicas, de equipamentos e/ou de software. "]
[null,null,null,"As inovações de processo podem também visar reduzir custos de produção ou de distribuição, melhorar a qualidade, ou ainda produzir ou distribuir produtos novos ou significativamente melhorados. "]
[null,null,null,"Os métodos de produção envolvem as técnicas, equipamentos e software utilizado para produzir bens e serviços. São exemplos de novos métodos de produção a introdução de novos equipamentos de automação numa linha de produção e a implementação de design auxiliado por computador para o desenvolvimento de um produto. "]
[null,null,null,"Os métodos de distribuição dizem respeito à logística da empresa e seus equipamentos, software e técnicas para aprovisionamento (matérias primas e produtos acabados) e entrega do produto final. "]
[null,null,null,"As inovações de processo incluem métodos novos ou significativamente melhorados para a criação e o fornecimento de serviços. Elas podem envolver mudanças substanciais nos equipamentos e no software utilizado em empresas orientadas para os serviços ou nos procedimentos e nas técnicas que são utilizadas para os serviços de distribuição."]
[]
[null,null,null,"Inovação de Marketing"]
[]
[null,null,null,"Uma Inovação de marketing é a implementação de um novo método de marketing com mudanças significativas na conceção do produto ou na sua embalagem, no posicionamento do produto, na sua promoção ou na fixação de preços. Inclui inovações de marketing “inbound”, nomeadamente a otimização de motores de busca e website design. "]
[null,null,null,"Inovações de marketing são voltadas para melhor atender as necessidades dos clientes, abrindo novos mercados, ou reposicionando o produto de uma empresa no mercado, com o objetivo de aumentar as vendas. "]
[null,null,null,"A característica distintiva de uma inovação de marketing comparada com outras mudanças nos instrumentos de marketing de uma empresa é a implementação de um método de marketing que não tenha sido utilizado previamente pela empresa. Isso deve fazer parte de um novo conceito ou estratégia de marketing que representa um distanciamento substancial dos métodos de marketing existentes na empresa. Novos métodos de marketing podem ser implementados para produtos novos ou já existentes."]
[null,null,null,"Inovações de marketing compreendem mudanças substanciais no design do produto, constituindo um novo conceito de marketing. Mudanças de design do produto referem-se aqui a mudanças na forma e na aparência do produto que não alteram as características funcionais ou de uso do produto. Elas também incluem mudanças na forma de embalar produtos como alimentos, bebidas e detergentes, em que a embalagem é o principal determinante da aparência do produto. Inovações em design de produtos podem também incluir a introdução de mudanças significativas na forma, na aparência ou no sabor de alimentos ou bebidas, como a introdução de novos aromatizantes em produtos de alimentação com o objetivo de atingir um novo segmento de consumidores. "]
[null,null,null,"Os novos métodos de marketing em promoção de produtos envolvem o uso de novos conceitos para promover produtos ou serviços de uma empresa. Por exemplo, o estabelecimento de uma marca, com o desenvolvimento e a introdução de um símbolo fundamentalmente novo para uma marca que visa posicionar o produto de uma empresa num novo mercado ou dar-lhe uma nova imagem. "]
[null,null,null,"Mudanças sazonais, regulares ou rotineiras nos instrumentos de marketing não são consideradas inovações. Para que tais mudanças configurem inovações de marketing, é essencial que elas envolvam métodos de marketing não utilizados previamente pela empresa. Por exemplo, uma mudança significativa no design ou na embalagem de um produto que se baseie num conceito de marketing já usado pela empresa para outros produtos não é uma inovação de marketing, nem o uso de métodos de marketing existentes para atingir um novo mercado geográfico ou um novo segmento de mercado."]
[]
[null,null,null,"Inovação Organizacional"]
[]
[null,null,null,"Uma Inovação Organizacional é a implementação de um novo método organizacional nas práticas de negócios da empresa, na organização do seu local de trabalho ou nas suas relações externas. "]
[null,null,null,"Inovações organizacionais podem visar a melhoria do desempenho de uma empresa por meio da redução de custos administrativos ou de custos de transação, estimulando a satisfação no local de trabalho (e assim a produtividade do trabalho). "]
[null,null,null,"Os aspetos distintivos da inovação organizacional, comparada com outras mudanças organizacionais numa empresa, é a implementação de um método organizacional (em práticas de negócios, na organização do local de trabalho ou nas relações externas) que não tenha sido anteriormente usado na empresa. "]
[null,null,null,"As inovações organizacionais em práticas de negócios compreendem a implementação de novos métodos para a organização e procedimentos para a condução do trabalho. Isso inclui, por exemplo, a implementação de novas práticas para melhorar a difusão do conhecimento no interior da empresa. Um exemplo é a primeira implementação de práticas para a codificação do conhecimento, por exemplo pelo estabelecimento de bancos de dados com as melhores práticas, lições e outros conhecimentos, de modo que a informação se tornem mais acessíveis a todos. Outro exemplo é a primeira introdução de sistemas de gestão da produção, tais como sistemas gestão de cadeira de fornecedores, reengenharia de negócios, sistemas de gestão qualidade. "]
[null,null,null,"As inovações na organização do local de trabalho envolvem a implementação de novos métodos para distribuir responsabilidades e poder de decisão. Participam também novos conceitos para a estruturação de atividades, tais como a integração de diferentes atividades de negócio. Um exemplo de inovação no local de trabalho é a primeira implementação de um modelo organizacional que confere aos empregados de uma empresa maior autonomia na tomada de decisões e os encoraja a contribuir com suas ideias."]
[null,null,null,"Novos métodos organizacionais nas relações externas de uma empresa compreendem a implementação de novos meios para organizar as relações com outras empresas ou instituições públicas, tais como o estabelecimento de novos tipos de colaborações com organizações de pesquisa ou consumidores, novos métodos de integração com fornecedores e o uso de outsourcing ou a introdução da subcontratação das atividades de negócios na produção, no aprovisionamento, na distribuição, no recrutamento e em serviços auxiliares. "]
[null,null,null,"Mudanças nas práticas de negócios, na organização do local de trabalho ou nas relações externas baseadas em métodos organizacionais já em uso na empresa não são inovações organizacionais. Também não é considerada uma inovação a formulação de estratégias de gestão em si. Todavia, mudanças organizacionais que são implementadas em resposta a uma nova estratégia de gestão são consideradas uma inovação se elas representarem a primeira implementação de um novo método organizacional em práticas de negócios, organização do local de trabalho ou relações externas. "]
[null,null,null,"Fusões ou aquisições de outras empresas não são consideradas inovações organizacionais, mesmo se uma empresa se unir a outras ou adquiri-las pela primeira vez."]

{"sheet":"Inv. Inicial_Inv.Compl_Energia","index":3,"n_rows":201,"n_cols":12,"rows_kept":201,"cut":false,"hidden":false,"merged":[[77,9,77,11],[46,3,46,10],[74,4,74,8],[11,2,11,12],[4,2,4,10],[7,2,7,4],[21,3,21,10],[13,2,13,12],[20,3,20,8],[20,9,20,10],[15,7,15,10],[200,4,205,10],[190,4,197,10],[183,4,187,10],[178,4,181,10],[106,3,106,10],[174,4,175,10],[134,3,134,10],[107,3,107,8],[113,4,113,9],[133,3,133,8],[133,9,133,10],[152,3,152,8],[152,9,152,10],[153,3,153,10],[78,9,78,11],[79,9,79,11],[80,9,80,11],[199,4,199,8],[189,4,189,8],[105,3,105,10],[84,4,84,10],[85,3,85,4]]}
[]
[]
[null,null,"BENEFICIÁRIO:"]
[]
[null,null,{"$f":"+CAPA!C9","v":0}]
[]
[null,null,"NIF:"]
[null,null,{"$f":"+CAPA!C12","v":0}]
[]
[null,null,"SISTEMA DE INCENTIVOS:"]
[]
[null,null,{"$f":"+CAPA!C16","v":"VALORIZAR 2020 - Terceira alteração"}]
[]
[null,null,"Investimento inicial ou investimento complementar necessário à concretização da área prioritária “Qualificação das estratégias empresariais”, deverá escolher apenas um dos investimentos                                                                                                                                                           e Eficiência energética e utilização de energias renováveis nas empresas"]
[]
[null,null,{"$f":"IF(L21=0,\"!\",IF(L21=1,\"√\",\"!\"))","v":"!"},{"$f":"IF(L21=0,\"   Escolha um Investimento\",IF(L21=1,IF(J21<>\"\",\"   (A) INVESTIMENTO INICIAL\",\"   (B) Investimento complementar necessário à concretização da área prioritária “Qualificação das estratégias empresariais”\"),\"   Deverá apenas escolher um Investimento\"))","v":"   Escolha um Investimento"},null,null,{"$f":"IF(L153=0,\"!\",IF(L153=1,\"√\",\"!\"))","v":"!"},{"$f":"IF(G16=0,\"   Escolha um Investimento\",IF(G16=\"√\",\"Eficiência energética e utilização de energias renováveis nas empresas\",\"não tem investimento em Eficiência energética e utilização de energias renováveis nas empresas\"))","v":"não tem investimento em Eficiência energética e utilização de energias renováveis nas empresas"}]
[]
[null,null,{"$f":"IF(D18=\"   Não aplicável\",\"√\",IF(L21=0,\"!\",IF(L23=0,\"!\",IF(L23=1,\"√\",\"!\"))))","v":"!"},{"$f":"IF(L21=0,\"   Escolha um Investimento\",IF(J134<>\"\",\"   Não aplicável\",IF(L23=1,IF(K23<>\"\",\"   a)  A criação de um novo estabelecimento\",IF(K45<>\"\",\"   b) O aumento da capacidade de um estabelecimento já existente.\",IF(K75<>\"\",\"   c) A diversificação da produção de um estabelecimento para produtos não produzidos anteriormente no estabelecimento.\",IF(K105<>\"\",\"   d) A alteração fundamental do processo global de produção de um estabelecimento existente.\",\"   Valide o Enquadramento\")))),\"   Valide o Enquadramento\")))","v":"   Escolha um Investimento"}]
[null,null,"  "]
[]
[null,null,null,"A) INVESTIMENTO INICIAL (de entre as alíneas a), b), c) e d) deverá escolher apenas um dos enquadramentos e proceder à sua fundamentação)",null,null,null,null,null,null,null,{"$f":"COUNTA((J21,J134))","v":0}]
[null,null,null,"O projeto apresentado corresponde a um investimento inicial relacionado com:"]
[null,null,null,null," a)  A criação de um novo estabelecimento.",null,null,null,null,null,null,{"$f":"COUNTA($K$23,$K$45,$K$75,$K$105)","v":0}]
[]
[null,null,null,"Fundamentação "]
[]
[]
[]
[]
[]
[]
[]
[]
[]
[]
[]
[]
[]
[]
[]
[]
[]
[]
[]
[null,null,null,null," b) O aumento da capacidade de um estabelecimento já existente.",null,null,null,null,null,null,{"$f":"COUNTA($K$23,$K$45,$K$75,$K$105)","v":0}]
[null,null,null,"Capacidade de produção instalada - aplicável apenas à tipologia “Aumento da Capacidade de um estabelecimento já existente” "]
[null,null,null," - Identificar, quando aplicável, a capacidade de produção instalada nas situações pré projeto e no encerramento financeiro do projeto, utilizando a unidade de medida adequada à atividade do beneficiário (Exemplos: Toneladas/Litros/nº de Produtos)."]
[null,null,null,"Se o quadro não for preenchido será utilizado o Valor Bruto da Produção (VBP) para aferir o aumento da capacidade de produção induzido pelo projeto."]
[]
[null,null,null,null,"Capacidade de produção instalada * (se aplicável)",null,null,"Capacidade de produção instalada apurada pelo VBP"]
[null,null,null,null,"Ano pré-Projeto","x","(inserir)","Ano pré-Projeto",null,"(inserir)"]
[null,null,null,null,"Ano encerramento financeiro",null,"(inserir)","Ano encerramento financeiro",null,"(inserir)"]
[null,null,null,null,"Unidade",null,"(inserir)","Variação",{"$f":"+(I52-I51)/I51","v":{"$error":"#DIV/0!"}}]
[null,null,null,null,"Variação",{"$f":"+(F52-F51)/F51","v":{"$error":"#VALUE!"}}]
[null,null,null,null,"* o aumento da capacidade instalada deve corresponder no mínimo a 20% da capacidade instalada em relação ao ano pré-projeto;"]
[null,null,null,"Fundamentação "]
[]
[]
[]
[]
[]
[]
[]
[]
[]
[]
[]
[]
[]
[]
[]
[]
[]
[]
[null,null,null,null,"c) A diversificação da produção de um estabelecimento para produtos não produzidos anteriormente no estabelecimento.",null,null,null,null,null,null,{"$f":"COUNTA($K$23,$K$45,$K$75,$K$105)","v":0}]
[null,null,null," - Identificar  o valor contabilistico dos ativos que são reutilizados no projeto, tal como registado no exercicio fiscal anterior à data da candidatura."]
[]
[null,null,null,null,"Rúbrica","Valor do ativo líquido (pré projeto)","Taxa de imputação - Peso relativo ao volume de vendas do novo produto","Valor do ativo reutilizado","Ano Pós Projeto","Calculo da Taxa imputação"]
[null,null,null,null,"Edifícios/construções",null,{"$f":"+J81","v":{"$error":"#DIV/0!"}},{"$f":"+G79*F79","v":{"$error":"#DIV/0!"}},"Volume de vendas do novo produto (a)"]
[null,null,null,null,"Máquinas/equipamentos",null,{"$f":"+J81","v":{"$error":"#DIV/0!"}},{"$f":"+G80*F80","v":{"$error":"#DIV/0!"}},"Volume de vendas Total (b)"]
[null,null,null,null,"Transportes",null,{"$f":"+J81","v":{"$error":"#DIV/0!"}},{"$f":"+G81*F81","v":{"$error":"#DIV/0!"}},"Taxa (a) / (b)",{"$f":"+J79/J80","v":{"$error":"#DIV/0!"}}]
[null,null,null,null,"Outros",null,{"$f":"+J81","v":{"$error":"#DIV/0!"}},{"$f":"+G82*F82","v":{"$error":"#DIV/0!"}}]
[null,null,null,null,"Intangíveis",null,{"$f":"+J81","v":{"$error":"#DIV/0!"}},{"$f":"+G83*F83","v":{"$error":"#DIV/0!"}}]
[null,null,null,null,"Total",{"$f":"+F79+F80+F81+F82+F83","v":0},null,{"$f":"+H79+H80+H81+H82+H83","v":{"$error":"#DIV/0!"}}]
[null,null,null,null,"* Deverá ser entregue um mapa indicando os ativos tangíveis e intangíveis detalhados por rúbrica (líquidos de amortizações e de depreciações) relativos ao ano anterior à data da candidatura e reutilizados no projeto, devidamente validado pelo CC ou ROC, consoante exigência legal."]
[null,null,null,"Fundamentação "]
[]
[]
[]
[]
[]
[]
[]
[]
[]
[]
[]
[]
[]
[]
[]
[]
[]
[]
[null,null,null,null,"d) A alteração fundamental do processo global de produção de um estabelecimento existente.",null,null,null,null,null,null,{"$f":"COUNTA($K$23,$K$45,$K$75,$K$105)","v":0}]
[null,null,null,"Amortização e depreciação dos ativos associados à atividade a modernizar no decurso dos três exercícios fiscais precedentes "]
[null,null,null," - Identificar as amortizações e depreciações de todos os ativos tangíveis e intangíveis objeto de exploração económica no estabelecimento em causa e registados no balanço correspondente aos três anos pré-projeto, sendo excluídos os ativos que serão objeto de abate, alienação ou de relocalização para outro estabelecimento da empresa, no âmbito do projeto em causa."]
[]
[]
[null,null,null,null,null,"Amortizações e depreciações ano n-3","Amortizações e depreciações ano n-2","Amortizações e depreciações ano n-1","Total"]
[null,null,null,null,"Ativos tangíveis",null,null,null,{"$f":"+H111+G111+F111","v":0}]
[null,null,null,null,"Ativos intangíveis",null,null,null,{"$f":"+H112+G112+F112","v":0}]
[null,null,null,null,"Total",{"$f":"+F111+F112","v":0},{"$f":"+G111+G112","v":0},{"$f":"+H111+H112","v":0},{"$f":"+H113+G113+F113","v":0}]
[null,null,null,null,"* deverá ser entregue o Mapa de Amortizações (dos três anos anteriores à data da candidatura), devidamente validado pelo TOC ou ROC, consoante exigência legal."]
[null,null,null,"Fundamentação "]
[]
[]
[]
[]
[]
[]
[]
[]
[]
[]
[]
[]
[]
[]
[]
[]
[]
[]
[null,null,null,"B) Investimento complementar necessário à concretização da área prioritária “Qualificação das estratégias empresariais”, estas despesas apenas são elegíveis ao abrigo do Regime de minimis.",null,null,null,null,null,null,null,{"$f":"COUNTA((J21,J134))","v":0}]
[null,null,null,"A complementaridade do investimento deverá ser aferida por relatório detalhado do fornecedor associado à área prioritária “Qualificação das estratégias empresariais”.                                                                        Este comprovativo deverá ser entregue com a candidatura."]
[]
[null,null,null,"Fundamentação "]
[]
[]
[]
[]
[]
[]
[]
[]
[]
[]
[]
[]
[]
[]
[]
[null,null,null,"C) Eficiência energética e utilização de energias renováveis nas empresas, incluindo operações enquadradas na iniciativa “Smart Fossil Free Island”, nos termos da Resolução n.º 263/2016 de 20 de maio.         ",null,null,null,null,null,null,null,{"$f":"COUNTA((J153,J267))","v":0}]
[]
[]
[null,null,null,"Fundamentação do investimento de acordo com a auditoria energética"]
[]
[]
[]
[]
[]
[]
[]
[]
[]
[]
[]
[]
[]
[]
[]
[null,null,null,"CONCEITOS A TER EM ATENÇÃO"]
[]
[null,null,null,null,"Investimento inicial"]
[null,null,null,null,"Corresponde a um investimento em ativos corpóreos e incorpóreos relacionados com a criação de um novo estabelecimento, aumento da cpacidade de um estabelecimento existente, diversificação da produção de um estabelecimento para produtos não produzidos anteriormente no estabelecimento ou mudança fundamental do processo de produção global de um estbelecimento existente."]
[]
[]
[null,null,null,null,"Criação de um novo estabelecimento:"]
[null,null,null,null,"Trata-se da criação de uma nova empresa ou de uma nova unidade económica noutro local. Neste caso poderemos estar perante uma inovação de produto/serviço ou de processo. Tem-se por referência a definição “Estabelecimento” usada pelo INE e na IES, em que este corresponde a uma empresa ou parte (fábrica, oficina, loja, entreposto, empreendimento, etc.) situada num local topograficamente identificado. Nesse local ou a partir dele exercem-se atividades económicas para as quais uma ou várias pessoas trabalham, por conta de uma mesma empresa."]
[]
[]
[]
[null,null,null,null,"Aumento da capacidade de um estabelecimento já existente:"]
[null,null,null,null,"Trata-se de um projeto de investimento que tenha por finalidade aumentar a capacidade de produção do estabelecimento já existente. Nesta situação a empresa vai aumentar a sua capacidade produtiva de bens e /ou serviços. \nIdentificar a capacidade de produção instalada nas situações pré e pós projeto, utilizando a unidade de medida adequada à atividade do beneficiário (Exemplos: Toneladas/Litros/nº de Produtos). Se o projeto for desta tipologia e este quadro não for preenchido, será utilizado o Valor Bruto da Produção (VBP) para aferir o aumento da capacidade de produção induzido pelo projeto.                                                                                                                                                                                                                                                                                                         O aumento de capacidade deve corresponder no mínimo a 20% da capacidade instalada em relação ao ano pré projeto. Nesta tipologia a empresa deve aumentar a sua capacidade produtiva de bens e/ou serviços já produzidos nesse estabelecimento. Para demonstrar o cumprimento do aumento mínimo de 20% é admitido o aumento em termos de Valor Bruto da Produção (VBP) conforme já referido anteriormente."]
[]
[]
[]
[]
[]
[null,null,null,null,"Diversificação da produção de um estabelecimento para produtos não produzido anteriormente no estabelecimento:"]
[null,null,null,null,"Caracteriza-se pela situação em que um estabelecimento passa a produzir novos produtos/serviços. Está-se, portanto, no âmbito de uma inovação de produto/serviço. A diversificação da produção considera produtos não produzidos anteriormente no estabelecimento, sendo que os custos elegíveis devem exceder em, pelo menos, 200% o valor contabilístico dos ativos que são reutilizados, tal como registado no exercício fiscal precedente ao início dos trabalhos.  O valor contabilistico dos ativos deve ser aferido tendo por base o valor contabilistico (liquido de amortizações e depreciações) dos ativos tangíveis e intangíveis afetos ao estabelecimento em causa e registados no balanço correspondente ao ano pré-projeto, devendo, assim, o valor do investimento elegivel do projeto ser superior a 200% desse valor contabilistico. O exercicio fiscal que precede o inicio dos trabalhos, considera-se o ano pré-projeto, ou seja o ano  anterior ao da apresentação da candidatura. Assim, a despesa elegível do projeto deve representar no mínimo o valor correspondente a 3 vezes o valor contabilístico dos ativos reutilizados. Os ativos reutilizados no projeto de diversificação (Edifícios, máquinas, equipamentos e outros ativos fixos tangíveis e intangíveis) devem ser identificados pela empresa na candidatura, sendo admitida a utilização de um método pro-rata para o seu apuramento, com base no peso relativo do volume de vendas dos novos produtos. \nOs ativos a considerar são os que, pertencendo ao balanço da empresa, são objeto de exploração económica no estabelecimento em causa. No caso dos ativos intangíveis a empresa deverá possuir um critério contabilisticamente aceite para afetação dos mesmos aos seus estabelecimentos, permitindo identificar o valor correspondente ao estabelecimento em causa. Caso a empresa possua um único estabelecimento onde desenvolve a sua atividade, serão considerados todos os ativos tangíveis e intangíveis registados no seu Balanço. Em qualquer dos casos, poderão ser excluídos os ativos que serão objeto de abate, alienação ou de relocalização para outro estabelecimento da empresa, no âmbito do projeto em causa.\n"]
[]
[]
[]
[]
[]
[]
[]
[]
[null,null,null,null,"Alteração fundamental do processo global de produção de um estabelecimento existente:"]
[null,null,null,null,"Caracteriza-se pela situação em que um estabelecimento existente sofre uma alteração fundamental do processo global de produção. Está-se, portanto, no âmbito de uma inovação de processo.\nNesta alteração fundamental não se está na presença de novas produções, bens ou serviços, (uma vez que a tipologia corresponde a uma alteração fundamental de processo global), sendo que os custos elegíveis devem exceder a amortização e depreciação dos ativos associados ao processo/atividade a modernizar no decurso dos três exercícios fiscais precedentes à data da candidatura. As amortizações e depreciações a considerar para este efeito dizem respeito a todos os ativos tangíveis e intangíveis associados ao processo /atividade a modernizar, registados no balanço da empresa correspondente ao ano pré-projeto e ao estabelecimento em causa e relacionados com o produto/serviço sobre os quais incide a alteração fundamental do processo global de produção. São excluídos os ativos que serão objeto de abate, alienação ou de relocalização para outro estabelecimento da empresa, no âmbito do projeto em causa. Para demonstrar o cumprimento deste critério de elegibilidade deve ser justificado que o investimento elegível do projeto é superior à soma das amortizações e depreciações dos ativos associados ao processo /atividade a modernizar no decurso dos três exercícios fiscais precedentes, ou seja, tendo por base os valores apresentados nas demonstrações financeiras correspondentes ao ano pré-projeto e aos dois anos anteriores a esse.                                                                     \n"]

{"sheet":"Construçao e efeito incentivo","index":4,"n_rows":44,"n_cols":5,"rows_kept":44,"cut":false,"hidden":false,"merged":[[20,3,20,10],[19,3,19,10],[4,2,4,10],[7,2,7,4],[11,2,11,11],[14,2,14,11]]}
[]
[]
[null,null,"BENEFICIÁRIO:"]
[]
[null,null,{"$f":"+CAPA!C9","v":0}]
[]
[null,null,"NIF:"]
[null,null,{"$f":"+CAPA!C12","v":0}]
[]
[null,null,"SISTEMA DE INCENTIVOS:"]
[]
[null,null,{"$f":"+CAPA!C16","v":"VALORIZAR 2020 - Terceira alteração"}]
[]
[]
[null,null,"Construção e Materias Circulantes e Justificação do efeito do Incentivo para grandes empresas"]
[]
[null,null,"  "]
[]
[null,null,null,"Construção e Materiais Circulantes: "]
[null,null,null,"O beneficiário deverá, nesta página fundamentar, quando aplicável, as despesas a efetuar com a construção de edifícios, remodelação ou outras construções (ponto iii) da alínea a) do nº 1 do artigo 14º do Reg. Valorizar 2020) salientando os seus principais aspetos assim como com a aquisição de material circulante no âmbito de projeto do setor do Turismo (ponto iv da alínea a) do nº 1 do artigo 14.º do Reg. Valorizar 2020)."]
[null,null,null,"ATENÇÃO: Para as despesas com a construção de edifícios, o beneficiário deverá comprovar que efetuou uma consulta ao mercado a um mínimo de 3 fornecedores. Estes comprovativos deverão ser entregues com a candidatura."]
[null,null,null,"Fundamentação "]
[]
[]
[]
[]
[]
[]
[]
[]
[]
[]
[]
[]
[]
[]
[]
[null,null,null,"Justificar do Efeito de Incentivo para grandes empresas."]
[null,null,null,"     Demonstrar que o incentivo induz um aumento:"]
[null,null,null,null,"        - aumento significativo da dimensão do projecto/actividade"]
[null,null,null,null,"        - aumento significativo do âmbito do projecto/actividade"]
[null,null,null,null,"        - aumento significativo do montante total dispendido pelo Beneficiário no projecto/actividade"]
[null,null,null,null,"        - aumento significativo da rapidez da conclusão do projecto/actividade"]
[null,null,null,"Fundamentação"]

{"sheet":"Postos Trabalho","index":5,"n_rows":62,"n_cols":15,"rows_kept":62,"cut":false,"hidden":false,"merged":[[32,3,32,4],[32,10,32,11],[33,3,33,4],[55,3,56,25],[30,3,31,4],[30,5,30,6],[30,10,31,11],[30,12,30,13],[4,2,4,17],[7,2,7,3],[11,2,11,17],[20,3,21,3],[20,4,20,5],[20,6,20,7],[20,8,20,9]]}
[]
[]
[null,null,"BENEFICIÁRIO:"]
[]
[null,null,{"$f":"+CAPA!C9","v":0}]
[]
[null,null,"NIF:"]
[null,null,{"$f":"+CAPA!C12","v":0}]
[]
[null,null,"SISTEMA DE INCENTIVOS:"]
[]
[null,null,{"$f":"+CAPA!C16","v":"VALORIZAR 2020 - Terceira alteração"}]
[]
[]
[null,null,"POSTOS DE TRABALHO"]
[]
[null,null,"  "]
[]
[null,null,null,"Postos de trabalho existentes na empresa"]
[null,null,null,"Mês de dezembro do ano pré-projeto e o mês anterior à data a apresentação da candidatura"]
[null,null,null,"Postos de trabalho","Mês de dezembro do ano pré-projeto",null,"e",null,"mês anterior à data a apresentação da candidatura"]
[null,null,null,null,"H","M",null,null,"H","M"]
[null,null,null,"Não qualificado",null,null,null,null,null,null,"(inserir)"]
[null,null,null,"Qualificado*",null,null,null,null,null,null,"(inserir)"]
[null,null,null,"* Nivel de qualificação igual ou superior ao Nível VI"]
[]
[]
[]
[null,null,null,"Postos de trabalho a criar com o projeto"]
[]
[null,null,null,"Postos de trabalho",null,"Total",null,null,null,null,"Postos de trabalho",null,"Total"]
[null,null,null,null,null,"H","M",null,null,null,null,null,"H","M"]
[null,null,null,"Não qualificado",null,null,null,"(inserir)",null,null,"Jovem",null,null,null,"(inserir)"]
[null,null,null,"Qualificado*",null,null,null,"(inserir)"]
[null,null,null,"* Nivel de qualificação igual ou superior ao Nível VI"]
[]
[null,null,null,"Fundamentação "]
[null,null,null," - Se os meios humanos são adequados ao desenvolvimento do projeto."]
[null,null,null," - Qual a formação dos postos de trabalho e se a mesma é adequada ao desenvolvimento do projeto."]
[]
[]
[]
[]
[]
[]
[]
[]
[]
[]
[]
[]
[]
[]
[]
[null,null,null,"Nota:"]
[null,null,null,"«Criação líquida de postos de trabalho», o aumento líquido do número de trabalhadores diretamente empregados na empresa, calculado e validado pela diferença entre o número de postos de trabalho existentes no mês anterior à data de apresentação do pedido de pagamento final e o valor mais alto apurado relativamente ao mês de dezembro do ano pré-projeto ou ao mês anterior à data a apresentação da candidatura.\napresentação da candidatura\n"]
[]
[]
[null,null,null,"Nos termos da Portaria n.º 782/2009 de 23 de julho, os níveis de qualificação de emprego a considerar são:"]
[null,null,null,"•  Nível 6 - Licenciatura\n"]
[null,null,null,"• Nível 7 - Mestrado"]
[null,null,null,"• Nível 8 - Doutoramento"]

{"sheet":"CRITERIOS_SELECAO_3.C","index":6,"n_rows":225,"n_cols":10,"rows_kept":225,"cut":false,"hidden":false,"merged":[[38,5,38,7],[57,7,57,9],[90,7,90,9],[137,6,137,8],[154,6,154,8],[98,3,98,5],[99,3,99,5],[95,3,95,4],[41,3,41,9],[39,3,39,10],[40,3,40,10],[59,3,59,10],[96,3,96,10],[19,3,19,10],[10,2,10,11],[3,2,3,11],[6,2,6,5],[12,2,12,11],[18,3,18,10],[16,6,16,8],[200,3,202,10],[116,3,116,4],[137,3,137,4],[138,3,138,10],[118,3,118,10],[117,3,117,10],[175,3,175,4],[178,3,178,4],[181,3,181,4]]}
[]
[null,null,"BENEFICIÁRIO:"]
[]
[null,null,{"$f":"+CAPA!C9","v":0}]
[]
[null,null,"NIF:"]
[null,null,{"$f":"+CAPA!C12","v":0}]
[]
[null,null,"SISTEMA DE INCENTIVOS:"]
[]
[null,null,{"$f":"+CAPA!C16","v":"VALORIZAR 2020 - Terceira alteração"}]
[]
[null,null,"Critérios de Seleção – Autoavaliação do Beneficiário"]
[]
[null,null,"  "]
[]
[null,null,null,"CRITÉRIO DE SELEÇÃO A – QUALIDADE DO PROJETO",null,null,"A = 0,40A1 + 0,60A2"]
[null,null,null,"Fatores a Valorizar"]
[null,null,null,"A1 – Coerência e pertinência do projeto no quadro de uma atuação em torno dos fatores dinâmicos de competitividade, avalia os projetos que demonstrem na candidatura um plano coerente tendo em vista a capacitação da empresa, através de investimentos em fatores dinâmicos de competitividade, no sentido de assegurar ganhos mais rápidos em termos de uma maior orientação para os mercados externos. Os projetos são valorizados pelo contributo para a concretização da estratégia da empresa face às ameaças/oportunidades dos mercados e capacidades concorrenciais evidenciadas pela mesma. (identificação clara da estratégia e dos objetivos estratégicos)."]
[null,null,null,"A2 – Grau de inovação do projeto, avalia o contributo do projeto para a promoção da inovação e respetiva natureza e avalia ainda a sua dimensão e respetivo âmbito de intervenção, o qual deverá garantir que o produto, serviço, processo, método organizacional ou de marketing seja novo ou significativamente melhorado para a empresa; será ainda tido em consideração o alinhamento do projeto com os objetivos e prioridades definidas na RIS3-RAM."]
[]
[null,null,null,"Fundamentação do subcritério A1 "]
[null,null,null,"- Identificação clara da estratégia e dos objetivos estratégicos. "]
[]
[]
[]
[]
[]
[]
[]
[]
[]
[]
[]
[]
[]
[]
[]
[null,null,null,"Fundamentação do subcritério A2",null,"A2 = 0,45 INOV + 0,55 RIS3"]
[null,null,null," - Identificação, do grau de inovação incorporada no projeto e respetivo impacto no mercado - INOV -  (Inovação produto/serviço; Inovação processo; Inovação organizacional; Inovação de marketing)."]
[null,null,null," - Identificação do grau de alinhamento do projeto relativamente aos domínios definidos na Estratégia Regional de Especialização Inteligente - RIS3 (Saúde e bem-estar; Qualidade agroalimentar; Sustentabilidade; Gestão e manutenção de infraestruturas; Bio-sustentabilidade; Energia; Mobilidade e alterações climáticas; Tecnologias de informação e comunicação; Turismo; Recursos e tecnologias do mar)."]
[null,null,null,"ATENÇÃO: Quando se tratar da criação de uma empresa, não se aplica o requisito mínimo \"novo para a empresa\"."]
[]
[]
[]
[]
[]
[]
[]
[]
[]
[]
[]
[]
[]
[]
[]
[null,null,null,"CrITÉRIO DE SELEÇÃO B – IMPACTO DO PROJETO NA COMPETITIVIDADE DA EMPRESA ",null,null,null,"B = (VABpós-projeto / VBPpós-projeto) x 100"]
[null,null,null,"Fundamentação Critério B"]
[null,null,null," - Produtividade económica do projeto, medida quer pelo impacto no valor acrescentado gerado pela empresa quer pelo incremento da atividade económica, refletindo o seu posicionamento na cadeia de valor."]
[]
[]
[]
[]
[]
[]
[]
[]
[]
[]
[]
[]
[]
[]
[]
[null,null,null,"Apresentar os valores apurados para:"]
[null,null,null,null,null,null,null,"VAB pós-projeto",null,"(inserir)"]
[null,null,null,null,null,{"$f":"+IF(ISERROR(+(I77/I79*100)),\"\",(I77/I79*100))","v":""}]
[null,null,null,null,null,null,null,"VBP pós-projeto",null,"(inserir)"]
[]
[]
[]
[]
[]
[]
[]
[]
[]
[]
[]
[null,null,null,"CRITÉRIO DE SLEEÇÃO C – CONTRIBUTO DO PROJETO PARA A COMPETITIVIDADE REGIONAL",null,null,null,"C = 0,40 C1 + 0,20 C2 + 0,40 C3"]
[null,null,null,"C1 – Efeito de arrastamento no tecido económico"]
[null,null,null,"C2 - Contributo do projeto para a estratégia regional"]
[null,null,null,"C3 - Contributo do projeto para a criação de um ambiente socioeconómico mais favorável na região "]
[]
[null,null,null,"Fundamentação do subcritério C1"]
[null,null,null,"C1 – Efeito de arrastamento no tecido económico - avalia o impacto na cadeia de valor, sobretudo o contributo do projeto para a criação de valor nas atividades a montante e a jusante e a colaboração com PMEs: "]
[null,null,null,"a)   Criação de valor nas atividades a jusante ao nível regional;"]
[null,null,null,"b)   Criação de valor nas atividades a jusante ao nível nacional;"]
[null,null,null,"c)   Criação de valor nas atividades a jusante ao nível internacional;"]
[null,null,null,"d)   Criação de valor pela utilização e valorização de inputs fornecidos por PMEs. "]
[]
[null,null,null,"- Identificação e justificação dos fatores de valoração selecionados. "]
[]
[]
[]
[]
[]
[]
[]
[]
[]
[]
[]
[]
[]
[null,null,null,"Fundamentação do subcritério C2"]
[null,null,null,"C2 - Contributo do projeto para a estratégia regional - avalia a natureza dos investimentos e a respetiva adequação à estratégia regional:"]
[null,null,null,"a)  Contributo do projeto para o posicionamento da empresa na cadeia de valor, ou seja, capacidade da empresa progredir a montante e a jusante e controlar elos cruciais para o seu desenvolvimento como a distribuição, marketing, design, etc;"]
[null,null,null,"b)   Reforço da base produtiva transacionável da RAM, com melhoria do seu posicionamento em cadeias de valor internacionais;"]
[null,null,null,"c)    Orientação da empresa para novos segmentos e mercados;"]
[null,null,null,"d)   Utilização de recursos naturais e valorização de produtos tradicionais;"]
[null,null,null,"e)   Impacto ao nível da sofisticação dos processos produtivos, valorizando-se a utilização de tecnologia sofisticada e processos capital-intensivos e incorporadores de conhecimento."]
[null,null,null,"- Identificação e justificação dos fatores de valoração selecionados. "]
[]
[]
[]
[]
[]
[]
[]
[]
[]
[]
[]
[]
[]
[null,null,null,"Fundamentação do subcritério C3",null,null,"C3 = 0,40 CMT + 0,60 NQE"]
[null,null,null,"C3 - Contributo do projeto para a criação de um ambiente socioeconómico mais favorável na região, avalia a dimensão dos meios humanos e a capacidade de potenciar novas competências qualificadas na empresa "]
[null,null,null," - Identificar o nº de postos de trabalho a manter ou a criar independentemente da qualificação (CMT)."]
[null,null,null," - Níveis de qualificação dos postos de trabalho criados, igual ou superior ao nível VI (NQE)."]
[]
[]
[]
[]
[]
[]
[]
[]
[]
[]
[]
[]
[]
[null,null,null,"CRITÉRIO DE SELEÇÃO D - SUSTENTABILIDADE FINANCEIRA DO PROJETO",null,null,"D = 0,25 IR + 0,30 IS + 0,45 FP"]
[]
[null,null,null,"Fundamentação do critério D"]
[null,null,null,"- Avaliação da viabilidade económica e financeira do projeto."]
[]
[]
[]
[]
[]
[]
[]
[]
[]
[]
[]
[]
[]
[null,null,null,"- Apresentar os valores apurados para:"]
[]
[null,null,null,"- Avaliação da viabilidade económica e financeira do projeto."]
[null,null,null,"- Apresentar os valores apurados para este subcritério: ",null,null,null,"Resultado Líquido pós-projeto",null,"(inserir)"]
[null,null,null,"IRpós-projeto = (Resultado líquido / Volume negócios) x 100 ",null,{"$f":"+IF(ISERROR(+(I175/I176*100)),\"\",(I175/I176*100))","v":""},null,"Volume Negócios pós-projeto",null,"(inserir)"]
[]
[null,null,null,null,null,null,null,"Capital Próprio pós-projeto",null,"(inserir)"]
[null,null,null,"ISpós-projeto = (Capital Próprio / Total do Passivo) x 100 ",null,{"$f":"+IF(ISERROR(+(I178/I179*100)),\"\",(I178/I179*100))","v":""},null," Total do Passivo pós-projeto",null,"(inserir)"]
[]
[null,null,null,null,null,null,null,"Capitais Próprios do Projeto",null,"(inserir)"]
[null,null,null,"FP = (Capitais Próprios do Projeto / Despesas Elegiveis) x 100)",null,{"$f":"+IF(ISERROR(+(I181/I182*100)),\"\",(I181/I182*100))","v":""},null,"Total das despesas Elegíveis",null,"(inserir)"]
[]
[]
[]
[]
[]
[]
[]
[]
[]
[]
[]
[]
[]
[]
[null,null,null,"Notas:"]
[]
[null,null,null,"Subcritério A2:"]
[null,null,null,"Grau de impato no mercado:"]
[null,null,null,"• Novo apenas para a empresa: o requisito mínimo para se considerar uma inovação é que a mudança introduzida tenha sido nova para a empresa. A inovação pode já ter sido implementada por outras empresas, mas é nova para a empresa.                                                                                                                                                                                                                                                       • Novo para o mercado regional: empresa introduz inovação no mercado da Região Autónoma da Madeira.                                                                                                                                                          • Novo para o mercado nacional e internacional: a empresa introduz inovação com o grau de novidade ao nível nacional ou internacional."]
[]
[]
[]
[null,null,null,"Dominios temáticos estratégios da RIS3:"]
[null,null,null,"• Saúde e bem-estar;"]
[null,null,null,"• Qualidade agroalimentar; "]
[null,null,null,"• Sustentabilidade, Gestão e manutenção de infraestruturas; "]
[null,null,null,"• Bio-sustentabilidade; "]
[null,null,null,"• Energia, mobilidade e alterações climáticas; "]
[null,null,null,"• Tecnologias de informação e comunicação; "]
[null,null,null,"• Turismo; "]
[null,null,null,"• Recursos e tecnologias do mar."]
[]
[null,null,null,"Critério B:"]
[null,null,null,"VAB = VBP - Consumos Intermédios "]
[null,null,null,"VBP = Volume de Negócios + Variação nos inventários da produção + Trabalhos para a própria empresa + Rendimentos Suplementares + Subsídios à Exploração "]
[null,null,null,"Volume de Negócios = Vendas + Prestação de serviços "]
[null,null,null,"Consumos Intermédios = Custo das Mercadorias + Custo das Matérias-Primas e Subsidiárias Consumidas + Fornecimentos e Serviços Externos + Impostos Indiretos"]
[]
[null,null,null,"Subcritério C3"]
[null,null,null,"Nos termos da Portaria n.º 782/2009 de 23 de julho, os níveis de qualificação de emprego a considerar no presente  subcritério são:"]
[null,null,null,"• Nível 6 - Licenciatura"]
[null,null,null,"• Nível 7 - Mestrado"]
[null,null,null,"• Nível 8 - Doutoramento"]

{"sheet":"CRITERIOS_SELECAO_4.B","index":7,"n_rows":229,"n_cols":10,"rows_kept":229,"cut":false,"hidden":false,"merged":[[3,2,3,11],[6,2,6,5],[10,2,10,11],[12,2,12,11],[18,3,18,10],[16,7,16,8],[138,3,138,4],[138,6,138,8],[139,3,139,10],[60,3,60,10],[91,7,91,9],[96,3,96,4],[97,3,97,10],[99,3,99,5],[100,3,100,5],[58,8,58,9],[117,3,117,4],[118,3,118,10],[119,3,119,10],[19,3,19,10],[38,5,38,7],[39,3,39,10],[40,3,40,10],[41,3,41,9],[52,3,52,9],[54,3,54,5],[54,6,54,9],[155,6,155,8],[176,3,176,4],[179,3,179,4],[182,3,182,4],[201,3,203,10],[192,3,192,4],[193,3,193,6],[191,3,191,4],[228,3,228,9],[223,3,223,7],[225,3,225,9],[226,3,226,9],[221,3,221,7],[222,3,222,7],[224,3,224,9]],"read":"row_number_cap"}
[]
[null,null,"BENEFICIÁRIO:"]
[]
[null,null,{"$f":"+CAPA!C9","v":0}]
[]
[null,null,"NIF:"]
[null,null,{"$f":"+CAPA!C12","v":0}]
[]
[null,null,"SISTEMA DE INCENTIVOS:"]
[]
[null,null,{"$f":"+CAPA!C16","v":"VALORIZAR 2020 - Terceira alteração"}]
[]
[null,null,"Critérios de Seleção – Autoavaliação do Beneficiário"]
[]
[null,null,"  "]
[]
[null,null,null,"CRITÉRIO DE SELEÇÃO E1 – CONTRIBUTO DO PROJETO PARA A REDUÇÃO DAS EMISSÕES DE CO2",null,null,null,"E1 = 50 + 0,0075 x (10000 - ( C/R1 ))"]
[null,null,null,"Fatores a Valorizar"]
[null,null,null,"Avalia a redução, por unidade de investimento, das emissões de dióxido de carbono, o que traduz o desempenho do projeto face aos objetivos do programa de promoção de uma economia com baixo teor de carbono."]
[null,null,null,"A2 – Grau de inovação do projeto, avalia o contributo do projeto para a promoção da inovação e respetiva natureza e avalia ainda a sua dimensão e respetivo âmbito de intervenção, o qual deverá garantir que o produto, serviço, processo, método organizacional ou de marketing seja novo ou significativamente melhorado para a empresa; será ainda tido em consideração o alinhamento do projeto com os objetivos e prioridades definidas na RIS3-RAM."]
[]
[null,null,null,"Fundamentação do critério E1"]
[null,null,null,"- Identificação clara da estratégia e dos objetivos estratégicos. "]
[]
[]
[]
[]
[]
[]
[]
[]
[]
[]
[]
[]
[]
[]
[]
[null,null,null,"Fundamentação do subcritério A2",null,"A2 = 0,45 INOV + 0,55 RIS3"]
[null,null,null," - Identificação, do grau de inovação incorporada no projeto e respetivo impacto no mercado - INOV -  (Inovação produto/serviço; Inovação processo; Inovação organizacional; Inovação de marketing)."]
[null,null,null," - Identificação do grau de alinhamento do projeto relativamente aos domínios definidos na Estratégia Regional de Especialização Inteligente - RIS3 (Saúde e bem-estar; Qualidade agroalimentar; Sustentabilidade; Gestão e manutenção de infraestruturas; Bio-sustentabilidade; Energia; Mobilidade e alterações climáticas; Tecnologias de informação e comunicação; Turismo; Recursos e tecnologias do mar)."]
[null,null,null,"ATENÇÃO: Quando se tratar da criação de uma empresa, não se aplica o requisito mínimo \"novo para a empresa\"."]
[]
[]
[]
[]
[]
[]
[]
[]
[]
[]
[null,null,null,"Apresentar valores apurados para:"]
[]
[null,null,null,"Redução anual das emissões de CO2 com a operação (t/ano):",null,null,"Despesas elegíveis para eficiência energética e energias renováveis da operação (euros):"]
[null,null,null,"R1",null,null,"C"]
[]
[]
[null,null,null,"CRITÉRIO DE SELEÇÃO E2  - CONTRIBUTO DO PROJETO PARA A REDUÇÃO DA ENERGIA PRIMÁRIA IMPORTADA DE ORIGEM FÓSSIL",null,null,null,null,"E2 = 50 + 0,0025 x (29070 - ( C/R2 ))"]
[null,null,null,"Fatores a Valorizar"]
[null,null,null,"Avalia a redução de energia primária, expressa em [tep/ano], referentes à utilização de combustíveis fósseis, o que traduz o desempenho do projeto face ao indicador de resultado - Consumo de energia primária nas empresas."]
[]
[]
[]
[]
[]
[]
[]
[]
[]
[]
[]
[]
[]
[]
[]
[null,null,null,"Fundamentação critério E2"]
[null,null,null,null,null,null,null,"VAB pós-projeto",null,"(inserir)"]
[null,null,null,null,null,{"$f":"+IF(ISERROR(+(I78/I80*100)),\"\",(I78/I80*100))","v":""}]
[null,null,null,null,null,null,null,"VBP pós-projeto",null,"(inserir)"]
[]
[]
[]
[]
[]
[]
[]
[]
[]
[]
[]
[null,null,null,"Critérios de Seleção C – CONTRIBUTO DO PROJETO PARA A COMPETITIVIDADE REGIONAL",null,null,null,"C = 0,40 C1 + 0,20 C2 + 0,40 C3"]
[null,null,null,"C1 – Efeito de arrastamento no tecido económico"]
[null,null,null,"C2 - Contributo do projeto para a estratégia regional"]
[null,null,null,"C3 - Contributo do projeto para a criação de um ambiente socioeconómico mais favorável na região "]
[]
[null,null,null,"Fundamentação do subcritério C1"]
[null,null,null,"C1 – Efeito de arrastamento no tecido económico - avalia o impacto na cadeia de valor, sobretudo o contributo do projeto para a criação de valor nas atividades a montante e a jusante e a colaboração com PMEs: "]
[null,null,null,"a)   Criação de valor nas atividades a jusante ao nível regional;"]
[null,null,null,"b)   Criação de valor nas atividades a jusante ao nível nacional;"]
[null,null,null,"c)   Criação de valor nas atividades a jusante ao nível internacional;"]
[null,null,null,"d)   Criação de valor pela utilização e valorização de inputs fornecidos por PMEs. "]
[]
[null,null,null,"- Identificação e justificação dos fatores de valoração selecionados. "]
[]
[]
[]
[]
[]
[]
[]
[]
[]
[]
[]
[]
[]
[null,null,null,"Fundamentação do subcritério C2"]
[null,null,null,"C2 - Contributo do projeto para a estratégia regional - avalia a natureza dos investimentos e a respetiva adequação à estratégia regional:"]
[null,null,null,"a)  Contributo do projeto para o posicionamento da empresa na cadeia de valor, ou seja, capacidade da empresa progredir a montante e a jusante e controlar elos cruciais para o seu desenvolvimento como a distribuição, marketing, design, etc;"]
[null,null,null,"b)   Reforço da base produtiva transacionável da RAM, com melhoria do seu posicionamento em cadeias de valor internacionais;"]
[null,null,null,"c)    Orientação da empresa para novos segmentos e mercados;"]
[null,null,null,"d)   Utilização de recursos naturais e valorização de produtos tradicionais;"]
[null,null,null,"e)   Impacto ao nível da sofisticação dos processos produtivos, valorizando-se a utilização de tecnologia sofisticada e processos capital-intensivos e incorporadores de conhecimento."]
[null,null,null,"- Identificação e justificação dos fatores de valoração selecionados. "]
[]
[]
[]
[]
[]
[]
[]
[]
[]
[]
[]
[]
[]
[null,null,null,"Fundamentação do subcritério C3",null,null,"C3 = 0,40 CMT + 0,60 NQE"]
[null,null,null,"C3 - Contributo do projeto para a criação de um ambiente socioeconómico mais favorável na região, avalia a dimensão dos meios humanos e a capacidade de potenciar novas competências qualificadas na empresa "]
[null,null,null," - Identificar o nº de postos de trabalho a manter ou a criar independentemente da qualificação (CMT)."]
[null,null,null," - Níveis de qualificação dos postos de trabalho criados, igual ou superior ao nível VI (NQE)."]
[]
[]
[]
[]
[]
[]
[]
[]
[]
[]
[]
[]
[]
[null,null,null,"Critério D - SUSTENTABILIDADE FINANCEIRA DO PROJETO",null,null,"D = 0,25 IR + 0,30 IS + 0,45 FP"]
[]
[null,null,null,"Fundamentação do critério D"]
[null,null,null,"- Avaliação da viabilidade económica e financeira do projeto."]
[]
[]
[]
[]
[]
[]
[]
[]
[]
[]
[]
[]
[]
[null,null,null,"- Apresentar os valores apurados para:"]
[]
[null,null,null,"- Avaliação da viabilidade económica e financeira do projeto."]
[null,null,null,"- Apresentar os valores apurados para este subcritério: ",null,null,null,"Resultado Líquido pós-projeto",null,"(inserir)"]
[null,null,null,"IRpós-projeto = (Resultado líquido / Volume negócios) x 100 ",null,{"$f":"+IF(ISERROR(+(I176/I177*100)),\"\",(I176/I177*100))","v":""},null,"Volume Negócios pós-projeto",null,"(inserir)"]
[]
[null,null,null,null,null,null,null,"Capital Próprio pós-projeto",null,"(inserir)"]
[null,null,null,"ISpós-projeto = (Capital Próprio / Total do Passivo) x 100 ",null,{"$f":"+IF(ISERROR(+(I179/I180*100)),\"\",(I179/I180*100))","v":""},null," Total do Passivo pós-projeto",null,"(inserir)"]
[]
[null,null,null,null,null,null,null,"Capitais Próprios do Projeto",null,"(inserir)"]
[null,null,null,"FP = (Capitais Próprios do Projeto / Despesas Elegiveis) x 100)",null,{"$f":"+IF(ISERROR(+(I182/I183*100)),\"\",(I182/I183*100))","v":""},null,"Total das despesas Elegíveis",null,"(inserir)"]
[]
[]
[]
[]
[]
[]
[]
[]
[null,null,null,"Apresentar valores apurados para:"]
[]
[null,null,null,"Redução anual da energia primária importada de origem fóssil com a operação (tep/ano):"]
[null,null,null,"R2"]
[]
[]
[null,null,null,"Notas:"]
[]
[null,null,null,"Critério E1:"]
[null,null,null,"Grau de impate no mercado:"]
[null,null,null,"• C = Despesas elegíveis para a eficiência energética e energias renováveis da operação [eur];                                                                                                                                                                                                                                                       • R1 = Redução anual das emissões de CO2 com a operação [t CO2/ ano].                                                                                                                                                          "]
[]
[]
[]
[null,null,null,"Quando o valor calculado for superior a 100, a pontuação é 100. Quando for inferior a 0, a pontuação é 0."]
[]
[null,null,null,"Para efeitos de determinação das emissões de dióxido de carbono, são considerados os seguintes parâmetros:"]
[null,null,null,"a) Quando se tratar de utilização de combustíveis fósseis, são função dos fatores de emissão dos combustíveis;"]
[null,null,null,"b) Para energia elétrica, têm por base a informação do mix de produção e das respetivas emissões que constam nas faturas de fornecimento de energia elétrica;"]
[null,null,null,"c) Nos edifícios, têm por base a metodologia do Sistema de Certificação Energético dos Edifícios."]
[]
[]
[]
[]
[null,null,null,"Critério E2:"]
[null,null,null,"VAB = VBP - Consumos Intermédios "]
[null,null,null,"VBP = Volume de Negócios + Variação nos inventários da produção + Trabalhos para a própria empresa + Rendimentos Suplementares + Subsídios à Exploração "]
[null,null,null,"Volume de Negócios = Vendas + Prestação de serviços "]
[null,null,null,"Consumos Intermédios = Custo das Mercadorias + Custo das Matérias-Primas e Subsidiárias Consumidas + Fornecimentos e Serviços Externos + Impostos Indiretos"]
[]
[null,null,null,"• C = Despesas elegíveis para eficiência energética e energias renováveis da operação [eur];"]
[null,null,null,"• R2 = Redução anual da energia primária importada de origem fóssil com a operação [tep/ ano]."]
[]
[null,null,null,"Quando o valor calculado for superior a 100, a pontuação é 100. Quando for inferior a 0, a pontuação é 0."]
[]
[null,null,null,"Para efeitos do cálculo da energia primária, será considerada a energia primária  será considerado a energia primária fóssil, a que estão associadas as emissões de dióxido de carbono, expressa em [tep /ano], incluindo os consumos de combustíveis fósseis nas empresas e na produção de energia elétrica."]
[]
[null,null,null,"Os dados sobre a redução anual das emissões de dióxido de carbono com a operação e a redução anual da energia primária importada de origem fóssil com a operação são determinados pelos beneficiários, com base nos projetos e nas auditorias, diagnósticos e estudos energéticos, e são fornecidos nas candidaturas, juntamente com a informação sobre os investimentos e custos unitários, para verificação dos custos padrão."]

{"sheet":"taxa base_majorações","index":8,"n_rows":74,"n_cols":12,"rows_kept":74,"cut":false,"hidden":false,"merged":[[73,3,74,10],[24,3,24,8],[22,3,22,6],[26,3,26,8],[4,2,4,10],[7,2,7,4],[11,2,11,11],[13,2,13,11],[21,3,21,10],[48,3,48,8],[68,3,68,10],[69,4,69,10],[70,4,70,10],[71,4,71,10]],"read":"row_number_cap"}
[]
[]
[null,null,"BENEFICIÁRIO:"]
[]
[null,null,{"$f":"+CAPA!C9","v":0}]
[]
[null,null,"NIF:"]
[null,null,{"$f":"+CAPA!C12","v":0}]
[]
[null,null,"SISTEMA DE INCENTIVOS:"]
[]
[null,null,{"$f":"+CAPA!C16","v":"VALORIZAR 2020 - Terceira alteração"}]
[]
[null,null,"Taxas e Majorações"]
[]
[null,null,{"$f":"IF($L$21=0,\"!\",IF($L$21=1,IF($K$21<>\"\",\"√\",\"√\"),\"!\"))","v":"!"},{"$f":"IF($L$21=0,\"   Escolha a Taxa Base\",IF($L$21=1,IF($K$21<>\"\",\"   Taxa base de 30%\",\"   Taxa base de 60%\"),\"   Escolha apenas uma Taxa Base\"))","v":"   Escolha a Taxa Base"},null,null,{"$f":"IF($L$49=0,\"!\",IF($L$49=1,IF($K$49<>\"\",\"√\",\"√\"),\"!\"))","v":"!"},{"$f":"IF(K49=0,\"   Não tem Efeciência energética\",IF(K49=1,IF($K$49<>\"\",\"   0%\",\"   Taxa base de 60%\"),\"   Projetos em Eficiência energética e utilização de energias renováveis\"))","v":"   Não tem Efeciência energética"}]
[]
[null,null,{"$f":"IF($L$21=1,IF($K$21<>\"\",IF($K$23=0,\"!\",IF($K$23=1,IF($J$23<>\"\",\"√\",IF($J$25<>\"\",\"√\",IF($J$27<>\"\",\"√\",\"\"))),\"√\")),IF(K45<>\"\",IF($K$47=0,\"!\",IF($K$47=1,IF($J$47<>\"\",\"√\",IF(K49<>\"\",\"√\",\"\")),\"!\")),\"\")),\"!\")","v":"!"},{"$f":"IF($L$21=1,IF($K$21<>\"\",IF($K$23=0,\"   Escolha a(s) majoração(ões)\",IF($K$23=1,IF($J$23<>\"\",\"   a) 10% para projetos apresentados por PME;\",IF($J$25<>\"\",\"   b) 10% para projetos que criem postos de trabalho, independentemente da sua qualificação, que correspondam no mínimo a um acréscimo de 10% volume de emprego;\",IF($J$27<>\"\",\"   c) 10% para projetos no setor do turismo e/ou cluster do mar.\",\"\"))),\"   Várias Majorações\")),IF(K45<>\"\",IF($K$47=0,\"   Escolha uma majoração\",IF($K$47=1,IF($J$47<>\"\",\"   a) projetos localizados em Parques Empresariais;\",IF(K49<>\"\",\"   Projetos em Eficiência energética e utilização de energias renováveis\",\"\")),\"   Escolha apenas uma majoração\")),\"\")),\"   Escolha a Taxa Base\")","v":"   Escolha a Taxa Base"}]
[null,null,"  "]
[]
[null,null,null,"1. taxa base de 40%",null,null,null,null,null,null,null,{"$f":"COUNTA($K$21,$J$47)","v":0}]
[null,null,null,"Majorações:"]
[null,null,null,null,null,null,null,null,null,null,{"$f":"COUNTA($J$23,$J$25,$J$27)","v":0}]
[]
[null,null,null,"a) 10% para projetos que criem postos de trabalho, independentemente da sua qualificação, que correspondam, no mínimo, a um acréscimo de 10% do volume de emprego;",null,null,null,null,null,null,{"$f":"COUNTA($J$23,$J$25,$J$27)","v":0}]
[]
[null,null,null,"b) 10% para projetos no setor do turismo e/ou cluster do mar.",null,null,null,null,null,null,{"$f":"COUNTA($J$23,$J$25,$J$27)","v":0}]
[]
[null,null,null,"Fundamentação "]
[]
[]
[]
[]
[]
[]
[]
[]
[]
[]
[]
[]
[]
[]
[]
[null,null,null,"2. taxa base de 60%",null,null,null,null,null,null,null,{"$f":"COUNTA($K$21,$K$45)","v":0}]
[]
[null,null,null,"Projetos localizados em Parques Empresariais;",null,null,null,null,null,null,{"$f":"COUNTA($J$47,$K$49)","v":0}]
[]
[null,null,null,"3. taxa base de 60%                                                                                                                                                                                                                                                                                                                                                                                                                                                                                                          Projetos em Eficiência energética e utilização de energias renováveis, nos termos da alínea c) do número 1 do artigo 7º do presente Regulamento.",null,null,null,null,null,null,null,{"$f":"COUNTA($K$49,$K$50)","v":0}]
[]
[null,null,null,"Fundamentação"]
[]
[]
[]
[]
[]
[]
[]
[]
[]
[]
[]
[]
[]
[]
[]
[null,null,null,"Notas:"]
[]
[null,null,null,"Para efeitos da majoração de criação de postos de trabalho, deverão ser preenchidas, cumulativamente, as seguintes condições:"]
[null,null,null,null,"a)    Cada posto de trabalho deve ser preenchido até ao mês anterior à data de apresentação do pedido de pagamento final e mantido durante um período mínimo de cinco anos a contar da data da conclusão física e financeira do projeto, ou três anos no caso de PME;"]
[null,null,null,null,"b)   Ter por base a existência de contrato de trabalho entre o trabalhador e o beneficiário, cuja data de contratação deverá ser posterior à data de apresentação da candidatura;"]
[null,null,null,null,"c) Os trabalhadores a contratar não terem tido vínculo de trabalho com a empresa beneficiária ou com empresas parceiras ou associadas desta, durante os 12 meses anteriores à data da candidatura."]
[]
[null,null,null,"O acréscimo de 10% do volume de emprego, será apurado pela divisão entre o número de postos de trabalho a criar, calculado nos termos da alínea g) do Anexo A do Valorizar 2020, sobre o total de postos de trabalho existentes, o qual corresponde ao valor mais alto apurado relativamente ao mês de dezembro do ano pré-projeto ou ao mês anterior à data da apresentação da candidatura."]

{"sheet":"VENDAS EXTERIOR","index":9,"n_rows":76,"n_cols":12,"rows_kept":76,"cut":false,"hidden":false,"merged":[[20,4,21,4],[20,5,21,5],[20,6,20,7],[20,8,20,9],[4,2,4,11],[11,2,11,11],[7,2,7,3],[14,2,14,12],[20,3,21,3],[59,3,61,3],[59,4,61,4],[59,5,59,7],[59,8,59,10],[60,5,61,5],[60,6,60,7],[60,8,61,8],[60,9,60,10]]}
[]
[]
[null,null,"BENEFICIÁRIO:"]
[]
[null,null,{"$f":"+Financiamento!C5","v":0}]
[]
[null,null,"NIF:"]
[null,null,{"$f":"+Financiamento!C8","v":0}]
[]
[null,null,"SISTEMA DE INCENTIVOS:"]
[]
[null,null,{"$f":"+Financiamento!C12","v":"VALORIZAR 2020 - Terceira alteração"}]
[]
[]
[null,null,"ATIVIDADE ECONÓMICA / VENDAS AO EXTERIOR"]
[]
[null,null,"  "]
[]
[null,null,null,"Atividade económica por mercado"]
[]
[null,null,null,"Tipo","Bem/Serviço","Mercado (país)","Ano Pré Proj",null,"Ano Fim Proj +1"]
[null,null,null,null,null,null,"Quantidade","Valor","Quantidade","Valor"]
[null,null,null,null,null,null,null,null,null,null,null,"Compras"]
[null,null,null,null,null,null,null,null,null,null,null,"Vendas"]
[]
[]
[]
[]
[]
[]
[]
[]
[]
[]
[]
[null,null,null,"Fundamentação e caraterização da atividade económica por mercado "]
[null,null,null," - Qual o histórico da empresa em matéria de internacionalização?"]
[null,null,null," - Qual é a estratégia de internacionalização?"]
[null,null,null," - A presença internacional é concentrada em que mercados?"]
[null,null,null," - Justifique os mercados selecionados."]
[]
[]
[]
[]
[]
[]
[]
[]
[]
[]
[]
[]
[]
[]
[]
[]
[]
[null,null,null,"Vendas ao Exterior Indiretas"]
[]
[null,null,null,"NIF","Designação do cliente Exportador","Ano Pré Proj",null,null,"Ano Fim Projeto + 1"]
[null,null,null,null,null,"Vendas do Beneficiário ao Cliente","Volume de Negócios do Cliente",null,"Vendas do Beneficiário ao Cliente","Volume de Negócios do Cliente"]
[null,null,null,null,null,null,"Internacional","Total",null,"Internacional","Total"]
[]
[]
[]
[]
[]
[]
[]
[]
[]
[]
[]
[]
[]
[null,null,null,"Fundamentação e caraterização das Vendas ao Exterior Indiretas"]

{"sheet":"Financiamento","index":10,"n_rows":107,"n_cols":29,"rows_kept":107,"cut":false,"hidden":false,"merged":[[59,23,59,27],[60,23,60,27],[60,13,60,21],[61,14,61,20],[61,23,61,27],[67,25,67,26],[63,23,63,27],[64,23,64,27],[47,3,47,8],[47,13,47,24],[49,21,49,23],[50,21,50,23],[53,3,53,10],[53,13,53,21],[55,23,55,27],[58,23,58,27],[54,3,54,5],[54,7,54,10],[54,13,54,21],[56,23,56,27],[55,3,55,5],[55,7,55,10],[55,14,55,20],[57,23,57,27],[57,13,57,21],[58,14,58,20],[40,3,40,8],[40,9,40,11],[40,12,40,14],[40,15,40,18],[40,19,40,23],[40,24,40,28],[39,3,39,8],[39,9,39,11],[39,12,39,14],[39,15,39,18],[39,19,39,23],[39,24,39,28],[38,3,38,8],[38,9,38,11],[38,12,38,14],[38,15,38,18],[38,19,38,23],[38,24,38,28],[37,3,37,8],[37,9,37,11],[37,12,37,14],[37,15,37,18],[37,19,37,23],[37,24,37,28],[36,3,36,8],[36,9,36,11],[36,12,36,14],[36,15,36,18],[36,19,36,23],[36,24,36,28],[35,3,35,8],[35,9,35,11],[35,12,35,14],[35,15,35,18],[35,19,35,23],[35,24,35,28],[34,3,34,8],[34,9,34,11],[34,12,34,14],[34,15,34,18],[34,19,34,23],[34,24,34,28],[30,3,30,8],[30,9,30,11],[30,12,30,14],[30,15,30,18],[30,19,30,23],[30,24,30,28],[32,24,32,28],[33,3,33,8],[33,9,33,11],[33,12,33,14],[33,15,33,18],[33,19,33,23],[33,24,33,28],[31,9,31,11],[31,12,31,14],[31,15,31,18],[31,19,31,23],[31,24,31,28],[32,3,32,8],[32,9,32,11],[32,12,32,14],[32,15,32,18],[32,19,32,23],[22,3,22,8],[22,9,22,11],[22,12,22,14],[22,15,22,18],[22,19,22,23],[23,9,23,11],[23,12,23,14],[23,15,23,18],[23,19,23,23],[28,3,28,28],[29,3,29,8],[29,9,29,11],[29,12,29,14],[29,15,29,18],[29,19,29,23],[29,24,29,28],[23,3,23,8],[22,24,22,28],[23,24,23,28],[4,2,4,17],[7,2,7,5],[11,2,11,17],[24,24,24,28],[26,3,26,8],[26,9,26,11],[26,12,26,14],[26,15,26,18],[26,19,26,23],[26,24,26,28],[20,3,20,28],[21,3,21,8],[21,9,21,11],[21,12,21,14],[21,15,21,18],[21,19,21,23],[21,24,21,28],[14,2,14,29],[19,3,19,8],[19,9,19,11],[19,12,19,14],[19,15,19,18],[19,19,19,23],[19,24,19,28],[27,3,27,8],[27,9,27,11],[27,12,27,14],[27,15,27,18],[27,19,27,23],[27,24,27,28],[25,3,25,8],[25,9,25,11],[25,12,25,14],[25,15,25,18],[25,19,25,23],[25,24,25,28],[66,11,66,26],[24,3,24,8],[24,9,24,11],[24,12,24,14],[24,15,24,18],[24,19,24,23],[106,3,106,28],[103,4,103,28],[102,4,102,28],[101,4,101,28],[100,4,100,28],[99,4,99,28],[98,4,98,28],[97,3,97,28],[95,3,95,29],[94,3,94,29],[91,4,92,28],[90,4,90,28],[89,4,89,28],[88,3,88,28],[87,3,87,28],[86,3,86,28],[85,3,85,28],[62,23,62,27]]}
[]
[]
[null,null,"BENEFICIÁRIO:"]
[]
[null,null,{"$f":"+CAPA!C9","v":0}]
[]
[null,null,"NIF:"]
[null,null,{"$f":"+CAPA!C12","v":0}]
[]
[null,null,"SISTEMA DE INCENTIVOS:"]
[]
[null,null,{"$f":"+CAPA!C16","v":"VALORIZAR 2020 - Terceira alteração"}]
[]
[]
[null,null,"FINANCIAMENTO DO PROJECTO"]
[]
[]
[null,null,null," Estrutura de Financiamento (Recursos Financeiros)    "]
[]
[null,null,null,"Fontes",null,null,null,null,null,"n",null,null,"n+1",null,null,"n+2",null,null,null,"Total",null,null,null,null,"% Investimento"]
[null,null,null,"1. Capitais Próprios (1)"]
[null,null,null,"Capital",null,null,null,null,null,null,null,null,null,null,null,null,null,null,null,{"$f":"SUM(J22:S22)","v":0},null,null,null,null,{"$f":"IF(ISERROR(T22/$T$41),\"0%\",T22/$T$41)","v":"0%"}]
[null,null,null,"Prestações Suplementares de Capital",null,null,null,null,null,null,null,null,null,null,null,null,null,null,null,0,null,null,null,null,"0%"]
[null,null,null,"Suprimentos Consolidados (2)",null,null,null,null,null,null,null,null,null,null,null,null,null,null,null,0,null,null,null,null,"0%"]
[null,null,null,"Sub-Total 1",null,null,null,null,null,{"$f":"+J24+J23+J22","v":0},null,null,{"$f":"+M24+M23+M22","v":0},null,null,{"$f":"+P24+P23+P22","v":0},null,null,null,0,null,null,null,null,"0%"]
[null,null,null,"2. Autofinanciamento (3)",null,null,null,null,null,null,null,null,null,null,null,null,null,null,null,0,null,null,null,null,"0%"]
[null,null,null,"3. Outros (4)",null,null,null,null,null,null,null,null,null,null,null,null,null,null,null,0,null,null,null,null,"0%"]
[null,null,null,"Sub-Total 2",null,null,null,null,null,{"$f":"+J26+J27","v":0},null,null,{"$f":"+M26+M27","v":0},null,null,{"$f":"+P26+P27","v":0},null,null,null,0,null,null,null,null,"0%"]
[null,null,null,"4. Capitais Alheios"]
[null,null,null,"Dívidas a Instituições de Crédito",null,null,null,null,null,null,null,null,null,null,null,null,null,null,null,{"$f":"SUM(J30:S30)","v":0},null,null,null,null,{"$f":"IF(ISERROR(T30/$T$41),\"0%\",T30/$T$41)","v":"0%"}]
[null,null,null,"Empréstimos Obrigacionistas",null,null,null,null,null,null,null,null,null,null,null,null,null,null,null,0,null,null,null,null,{"$f":"IF(ISERROR(T31/$T$41),\"0%\",T31/$T$41)","v":"0%"}]
[null,null,null,"Outras dívidas a Sócios / accionistas",null,null,null,null,null,null,null,null,null,null,null,null,null,null,null,0,null,null,null,null,{"$f":"IF(ISERROR(T32/$T$41),\"0%\",T32/$T$41)","v":"0%"}]
[null,null,null,"Fornecedores Imobilizado",null,null,null,null,null,null,null,null,null,null,null,null,null,null,null,0,null,null,null,null,"0%"]
[null,null,null,"Locação Financeira",null,null,null,null,null,null,null,null,null,null,null,null,null,null,null,0,null,null,null,null,"0%"]
[null,null,null,"Outros",null,null,null,null,null,null,null,null,null,null,null,null,null,null,null,0,null,null,null,null,"0%"]
[null,null,null,"Sub-Total 3",null,null,null,null,null,{"$f":"+J35+J34+J33+J32+J31+J30","v":0},null,null,{"$f":"+M35+M34+M33+M32+M31+M30","v":0},null,null,{"$f":"+P35+P34+P33+P32+P31+P30","v":0},null,null,null,{"$f":"SUM(J36:S36)","v":0},null,null,null,null,"0%"]
[null,null,null,"Incentivo Não Reembolsável (INR)",null,null,null,null,null,null,null,null,null,null,null,null,null,null,null,{"$f":"SUM(J37:S37)","v":0},null,null,null,null,"0%"]
[null,null,null,"Incentivo Reembolsável (IR)",null,null,null,null,null,null,null,null,null,null,null,null,null,null,null,{"$f":"SUM(J38:S38)","v":0},null,null,null,null,"0%"]
[null,null,null,"Sub-Total 4",null,null,null,null,null,{"$f":"+J37+J38","v":0},null,null,{"$f":"+M37+M38","v":0},null,null,{"$f":"+P37+P38","v":0},null,null,null,{"$f":"SUM(J39:S39)","v":0},null,null,null,null,"0%"]
[null,null,null,"FINANCIAMENTO TOTAL",null,null,null,null,null,{"$f":"+J39+J36+J25","v":0},null,null,{"$f":"+M39+M36+M25","v":0},null,null,{"$f":"+P39+P36+P25","v":0},null,null,null,{"$f":"SUM(J40:S40)","v":0},null,null,null,null,"0%"]
[null,null,null,"INVESTIMENTO TOTAL",null,null,null,null,null,null,null,null,null,null,null,null,null,null,null,{"$f":"+J41+M41+P41","v":0}]
[null,null,null,"(1) Novos capitais próprios"]
[null,null,null,"2) Novos suprimentos a incorporar em capital próprio até ao encerramento do projecto, para efeitos de cumprimento da condição de elegibilidade do projeto e do Critério D (FP)"]
[null,null,null,"(3) Resultado líquido do exercício + imparidades + provisões + gastos/reversões de depreciação e amortização, do ano pré-projecto"]
[null,null,null,"(4) Reafectação de valores do activo sem reflexo no autofinanciamento"]
[null,null,null,"(5) Investimento total de preencimento obrigatório"]
[]
[null,null,null,"Financiamento Bancário Assegurado",null,null,null,null,null,null,null,null,null,"Modalidades de Intervenção da Instituição de Crédito"]
[null,null,null,null,null,null,null,null,null,null,null,null,null,"Pedido de Financiamento à Instituição de Crédito:"]
[null,null,null,null,"Sim",null,null,"Não",null,null,null,null,null,"Crédito Bancário",null,null,null,null,null,"Montante:"]
[null,null,null,null,null,null,null,null,null,null,null,null,null,"Locação Financeira",null,null,null,null,null,"Montante:"]
[null,null,null,null,null,null,null,null,null,null,null,null,null,"Prestação de Garantia Bancária"]
[]
[null,null,null,"Outras Formas Financiamento",null,null,null,null,null,null,null,null,null,"Fontes de financiamento"]
[null,null,null,"Garantia Mútua",null,null,null,"                 Outra",null,null,null,null,null,"(CPp/DEp) ≥ 20% NPME ou ≥ 10% PME"]
[null,null,null,"Capital Risco",null,null,null,null,null,null,null,null,null,null,{"$f":"IF(ISERROR(+X57/X59),\"\",X57/X59)","v":""},null,null,null,null,null,null,null,null,"Capital Próprio Projeto - CPp"]
[null,null,null,null,null,null,null,null,null,null,null,null,null,null,null,null,null,"ou",null,null,null,null,null,{"$f":"+T25","v":0}]
[null,null,null,null,null,null,null,null,null,null,null,null,null,"(CPe + CPp) /(AT+ DEp ) ≥ 20%",null,null,null,null,null,null,null,null,null,"Despesa elegível projeto - Dep"]
[null,null,null,null,null,null,null,null,null,null,null,null,null,null,{"$f":"IF(ISERROR((+X57+X61)/(X63+X59)),\"\",(+X57+X61)/(X59+X63))","v":""},null,null,null,null,null,null,null,null,null,null,null,null,null,"(inserir)"]
[null,null,null,null,null,null,null,null,null,null,null,null,null,null,null,null,null,"e",null,null,null,null,null,"Capital próprio empresa - Cpe"]
[null,null,null,null,null,null,null,null,null,null,null,null,null,"(RpFe) / DEp ≥ 25%",null,null,null,null,null,null,null,null,null,null,null,null,null,null,"(inserir)"]
[null,null,null,null,null,null,null,null,null,null,null,null,null,null,{"$f":"IF(ISERROR(+(X65)/X59),\"\",(X65)/X59)","v":""},null,null,null,null,null,null,null,null,"Ativo total da empresa - AT"]
[null,null,null,null,null,null,null,null,null,null,null,null,null,null,null,null,null,null,null,null,null,null,null,null,null,null,null,null,"(inserir)"]
[null,null,null,null,null,null,null,null,null,null,null,null,null,null,null,null,null,null,null,null,null,null,null,"Recursos próprios da empresa ou financiamento externo que não incluam qualquer financiamento estatal - RpFe"]
[null,null,null,null,null,null,null,null,null,null,null,null,null,null,null,null,null,null,null,null,null,null,null,null,null,null,null,null,"(inserir)"]
[]
[null,null,null,null,null,null,null,null,null,null,null,"Nota: Atenção que  para efeitos do critério D apenas é considerado CPp/Dep, prioridade 3c"]
[null,null,null,null,null,null,null,null,null,null,null,null,null,null,null,null,null,null,null,null,null,null,null,null,null,{"$f":"+IF(ISERROR(+(X57)/X59),\"\",(X57)/X59)","v":""}]
[null,null,null,"Demonstração das Fontes de Financiamento"]
[]
[]
[]
[]
[]
[]
[]
[]
[]
[]
[]
[]
[]
[null,null,null,"Descrição das Fontes de Financiamento: "]
[null,null,null,"O beneficiário deverá justificar os valores e fontes indicadas na tabela, através de uma breve descrição."]
[]
[null,null,null,"Pretende-se, no quadro de Estrutura de Financiamento (Recursos Financeiros) do projeto, a indicação dos meios de financiamento do investimento nos anos da sua execução. "]
[null,null,null,"O financiamento total e anual deve ser coincidente com o correspondente investimento total e anual, inserido no quadro dos investimentos "]
[null,null,null,"O beneficiário tem de evidenciar que as fontes de financiamento estão asseguradas, devendo os correspondentes documentos comprovativos constar do Dossier de Projeto: "]
[null,null,null,"Capitais Próprios "]
[null,null,null,null,"Capital - indicação de qual o aumento de capital que, eventualmente, irá financiar o investimento. "]
[null,null,null,null,"Prestações Suplementares de Capital - indicação de qual o aumento de prestações suplementares que, eventualmente, irá financiar o investimento. "]
[null,null,null,null,"Suprimentos -  Novos suprimentos a incorporar em capital próprio até ao encerramento do projecto, para efeitos de cumprimento da condição de elegibilidade do projeto e do critério D (FP)."]
[]
[null,null,null,"Autofinanciamento "]
[null,null,null,"Poderá ser utilizado em cada ano de execução do investimento, um valor de autofinanciamento, que tenha como limite os meios libertos líquidos\n (Resultados Líquidos do Período + Gastos/Reversões de Depreciação e de Amortização + Imparidades + Provisões + Aumentos/reduções de justo valor)."]
[null,null,null,"Outros, poderão ser utilizadas outras forma de financiamento."]
[]
[null,null,null,"Capitais Alheios: "]
[null,null,null,null,"Dividas Instituições de Crédito - indicação de qual o valor de empréstimos bancários que, eventualmente, irá financiar o investimento. Na fase de candidatura, deverá entregar o documento comprovativo da aprovação do financiamento bancário ou de intenção de financiamento. "]
[null,null,null,null,"Empréstimos por Obrigações - Indicação de qual o valor de empréstimos obrigacionistas que, eventualmente, irá financiar o investimento. Na fase de candidatura, deverá dispor no Dossier do Projeto, da cópia da ata deliberativa da realização do empréstimo obrigacionista, incluindo as respetivas condições, nomeadamente, o montante, a taxa de juro, o valor nominal, o preço de emissão, o valor de reembolso e o método de amortização das obrigações. "]
[null,null,null,null,"Dívidas a Sócios/Acionistas - Indicação de qual o valor de outras eventuais dívidas a sócios/acionistas, que irão financiar o investimento. "]
[null,null,null,null,"Fornecedores imobilizado - indicação de qual o valor de fornecedores de imobilizado que, eventualmente, irá financiar o investimento. A maturidade do crédito concedido por Fornecedores de Imobilizado terá de ser igual ao prazo de execução do investimento. Na fase de candidatura, o documento comprovativo do acordo com o fornecedor de imobilizado, deverá integrar o Dossier de Projeto. "]
[null,null,null,null,"Locação Financeira – referência ao valor de locação financeira que, eventualmente, irá financiar o investimento. O beneficiário deve comprometer-se a concretizar a opção de compra do bem locado, no final do contrato de locação financeira. "]
[null,null,null,null,"Outros - Indicação de qual o valor de outras eventuais outras fontes, que irão financiar o investimento. "]
[]
[null,null,null,"Incentivos: "]
[null,null,null,"O beneficiário deverá indicar o montante de incentivo reembolsável que previsivelmente lhe venha a ser atribuído de acordo com as taxas e regras constantes do Regulamento. "]

{"sheet":"Balanço empresa ","index":11,"n_rows":84,"n_cols":18,"rows_kept":84,"cut":false,"hidden":false,"merged":[[83,14,83,15],[72,14,72,15],[73,14,73,15],[74,14,74,15],[75,14,75,15],[76,14,76,15],[77,14,77,15],[78,14,78,15],[79,14,79,15],[80,14,80,15],[81,14,81,15],[82,14,82,15],[71,14,71,15],[59,14,59,15],[60,14,60,15],[62,14,62,15],[63,14,63,15],[64,14,64,15],[65,14,65,15],[66,14,66,15],[67,14,67,15],[68,14,68,15],[69,14,69,15],[70,14,70,15],[58,14,58,15],[47,14,47,15],[48,14,48,15],[49,14,49,15],[50,14,50,15],[51,14,51,15],[52,14,52,15],[53,14,53,15],[54,14,54,15],[55,14,55,15],[56,14,56,15],[57,14,57,15],[41,14,41,15],[42,14,42,15],[43,14,43,15],[44,14,44,15],[46,3,46,13],[46,14,46,15],[40,14,40,15],[30,3,30,13],[30,14,30,15],[31,14,31,15],[32,14,32,15],[33,14,33,15],[34,14,34,15],[35,14,35,15],[36,14,36,15],[37,14,37,15],[38,14,38,15],[39,14,39,15],[26,3,26,13],[26,14,26,15],[27,3,27,13],[27,14,27,15],[28,3,28,13],[28,14,28,15],[23,3,23,13],[23,14,23,15],[24,3,24,13],[24,14,24,15],[25,3,25,13],[25,14,25,15],[20,3,20,13],[20,14,20,15],[21,3,21,13],[21,14,21,15],[22,3,22,13],[22,14,22,15],[17,3,17,13],[17,14,17,15],[18,3,18,13],[18,14,18,15],[19,3,19,13],[19,14,19,15],[10,2,10,17],[6,2,6,5],[3,2,3,17],[16,3,16,4],[16,16,16,17],[12,2,12,18],[14,2,14,7],[14,8,14,10]]}
[]
[null,null,"BENEFICIÁRIO:"]
[]
[null,null,{"$f":"+CAPA!C9","v":0}]
[]
[null,null,"NIF:"]
[null,null,{"$f":"+CAPA!C12","v":0}]
[]
[null,null,"SISTEMA DE INCENTIVOS:"]
[]
[null,null,{"$f":"+CAPA!C16","v":"VALORIZAR 2020 - Terceira alteração"}]
[]
[null,null,"BALANÇO DA EMPRESA Pré candidatura"]
[]
[null,null,"Data da candidatura:"]
[]
[null,null,null,"(euros)",null,null,null,null,null,null,null,null,null,null,null,null,"EMPRESA PRÉ CANDIDATURA"]
[null,null,null,"ACTIVO",null,null,null,null,null,null,null,null,null,null,"Notas",null,{"$f":"IF(YEAR($I$15)=\"\",\"\",YEAR($I$15)-2)","v":1898},{"$f":"IF(YEAR($I$15)=\"\",\"\",YEAR($I$15)-1)","v":1899}]
[null,null,null,"Activo não corrente"]
[null,null,null,"activos fixos tangíveis"]
[null,null,null,"Propriedades de investimento"]
[null,null,null,"Goodwill"]
[null,null,null,"Activos Intangíveis"]
[null,null,null,"Activos biológicos"]
[null,null,null,"Participações financeiras - método da equivalência patrimonial"]
[null,null,null,"Participações financeiras - outros métodos"]
[null,null,null,"Accionistas/sócios"]
[null,null,null,"Outros activos financeiros"]
[null,null,null,"Activos por impostos diferidos"]
[null,null,null,null,null,null,null,null,null,null,null,null,null,null,null,null,{"$f":"+Q19+Q20+Q21+Q22+Q23+Q24+Q25+Q26+Q27+Q28+Q29","v":0},{"$f":"+R19+R20+R21+R22+R23+R24+R25+R26+R27+R28+R29","v":0}]
[null,null,null,"Activo corrente"]
[null,null,null,"Inventários "]
[null,null,null,"Activos biológicos"]
[null,null,null,"Clientes"]
[null,null,null,"Adiantamentos a fornecedores"]
[null,null,null,"Estado e outros entes públicos"]
[null,null,null,"Accionistas/sócios"]
[null,null,null,"Outras contas a receber"]
[null,null,null,"Diferimentos"]
[null,null,null,"Activos financeiros detidos para negociação"]
[null,null,null,"Outros activos financeiros"]
[null,null,null,"Activos não correntes detidos para venda"]
[null,null,null,"Caixa e depósitos bancários"]
[null,null,null,null,null,null,null,null,null,null,null,null,null,null,null,null,{"$f":"+Q31+Q32+Q33+Q34+Q35+Q36+Q37+Q38+Q39+Q40+Q41+Q42+Q43","v":0},{"$f":"+R31+R32+R33+R34+R35+R36+R37+R38+R39+R40+R41+R42+R43","v":0}]
[null,null,null,"TOTAL DO ACTIVO",null,null,null,null,null,null,null,null,null,null,null,null,{"$f":"+Q30+Q44","v":0},{"$f":"+R30+R44","v":0}]
[]
[null,null,null,"CAPITAL PRÓPRIO E PASSIVO"]
[null,null,null,"CAPITAL PRÓPRIO  "]
[null,null,null,"Capital realizado"]
[null,null,null,"Acções (quotas) próprias "]
[null,null,null,"Outros instrumentos de capital próprio"]
[null,null,null,"Prémios de emissão"]
[null,null,null,"Reservas legais"]
[null,null,null,"Outras reservas"]
[null,null,null,"Resultados transitados"]
[null,null,null,"Ajustamentos em activos financeiros"]
[null,null,null,"Excedentes de revalorização"]
[null,null,null,"Outras variações no capital próprio"]
[null,null,null,"Resultado líquido do período "]
[null,null,null,"Interesses minoritários"]
[null,null,null,"Total do capital próprio",null,null,null,null,null,null,null,null,null,null,null,null,{"$f":"+Q48+Q49+Q50+Q51+Q52+Q53+Q54+Q55+Q56+Q57+Q58+Q59+Q60","v":0},{"$f":"+R48+R49+R50+R51+R52+R53+R54+R55+R56+R57+R58+R59+R60","v":0}]
[]
[null,null,null,"Passivo"]
[null,null,null,"Passivo não corrente"]
[null,null,null,"Provisões"]
[null,null,null,"Financiamentos obtidos"]
[null,null,null,"Responsabilidades por belefícios pós-emprego"]
[null,null,null,"Passivos por impostos diferidos"]
[null,null,null,"Outras contas a pagar"]
[null,null,null,null,null,null,null,null,null,null,null,null,null,null,null,null,{"$f":"+Q63+Q64+Q65+Q66+Q67+Q68+Q69","v":0},{"$f":"+R63+R64+R65+R66+R67+R68+R69","v":0}]
[null,null,null,"Passivo corrente"]
[null,null,null,"Fornecedores"]
[null,null,null,"Adiantamento de clientes"]
[null,null,null,"Estado e outros entes públicos"]
[null,null,null,"Accionistas/sócios"]
[null,null,null,"Financiamentos obtidos"]
[null,null,null,"Outras contas a pagar"]
[null,null,null,"Diferimentos"]
[null,null,null,"Passivos financeiros detidos para negociação"]
[null,null,null,"Outros passivos financeiros"]
[null,null,null,"Passivos não correntes detidos para venda"]
[null,null,null,null,null,null,null,null,null,null,null,null,null,null,null,null,{"$f":"+Q71+Q72+Q73+Q74+Q75+Q76+Q77+Q78+Q79+Q80+Q81","v":0},{"$f":"+R71+R72+R73+R74+R75+R76+R77+R78+R79+R80+R81","v":0}]
[null,null,null,"Total do passivo",null,null,null,null,null,null,null,null,null,null,null,null,{"$f":"+Q70+Q82","v":0},{"$f":"+R70+R82","v":0}]
[null,null,null,"Total do capital próprio e do passivo",null,null,null,null,null,null,null,null,null,null,null,null,{"$f":"+Q61+Q83","v":0},{"$f":"+R61+R83","v":0}]

{"sheet":"Balanço da empresa pós Proj","index":12,"n_rows":84,"n_cols":26,"rows_kept":84,"cut":false,"hidden":false,"merged":[[3,2,3,17],[6,2,6,5],[10,2,10,17],[83,14,83,15],[72,14,72,15],[73,14,73,15],[74,14,74,15],[75,14,75,15],[76,14,76,15],[77,14,77,15],[78,14,78,15],[79,14,79,15],[80,14,80,15],[81,14,81,15],[82,14,82,15],[71,14,71,15],[68,14,68,15],[69,14,69,15],[59,14,59,15],[60,14,60,15],[62,14,62,15],[63,14,63,15],[64,14,64,15],[70,14,70,15],[58,14,58,15],[47,14,47,15],[48,14,48,15],[49,14,49,15],[50,14,50,15],[51,14,51,15],[52,14,52,15],[53,14,53,15],[54,14,54,15],[55,14,55,15],[56,14,56,15],[57,14,57,15],[65,14,65,15],[66,14,66,15],[67,14,67,15],[41,14,41,15],[42,14,42,15],[43,14,43,15],[44,14,44,15],[46,3,46,13],[46,14,46,15],[40,14,40,15],[30,3,30,13],[30,14,30,15],[31,14,31,15],[32,14,32,15],[33,14,33,15],[34,14,34,15],[35,14,35,15],[36,14,36,15],[37,14,37,15],[38,14,38,15],[39,14,39,15],[26,3,26,13],[26,14,26,15],[27,3,27,13],[27,14,27,15],[28,3,28,13],[28,14,28,15],[23,3,23,13],[23,14,23,15],[24,3,24,13],[24,14,24,15],[25,3,25,13],[25,14,25,15],[20,3,20,13],[20,14,20,15],[21,3,21,13],[21,14,21,15],[22,3,22,13],[22,14,22,15],[17,3,17,13],[17,14,17,15],[18,3,18,13],[18,14,18,15],[19,3,19,13],[19,14,19,15],[16,3,16,4],[16,16,16,25],[12,2,12,26],[14,2,14,7],[14,8,14,10]]}
[]
[null,null,"BENEFICIÁRIO:"]
[]
[null,null,{"$f":"+CAPA!C9","v":0}]
[]
[null,null,"NIF:"]
[null,null,{"$f":"+CAPA!C12","v":0}]
[]
[null,null,"SISTEMA DE INCENTIVOS:"]
[]
[null,null,{"$f":"+CAPA!C16","v":"VALORIZAR 2020 - Terceira alteração"}]
[]
[null,null,"BALANÇO DA EMPRESA PÓS PROJECTO"]
[]
[null,null,"Data de Inicio da despesa:"]
[]
[null,null,null,"(euros)",null,null,null,null,null,null,null,null,null,null,null,null,"EMPRESA PÓS PROJETO"]
[null,null,null,"ACTIVO",null,null,null,null,null,null,null,null,null,null,"Notas",null,{"$f":"IF(YEAR($I$15)=\"\",\"\",YEAR($I$15))","v":1900},{"$f":"IF(YEAR($I$15)=\"\",\"\",YEAR($I$15)+1)","v":1901},{"$f":"IF(YEAR($I$15)=\"\",\"\",YEAR($I$15)+2)","v":1902},{"$f":"IF(YEAR($I$15)=\"\",\"\",YEAR($I$15)+3)","v":1903},{"$f":"IF(YEAR($I$15)=\"\",\"\",YEAR($I$15)+4)","v":1904},{"$f":"IF(YEAR($I$15)=\"\",\"\",YEAR($I$15)+5)","v":1905},{"$f":"IF(YEAR($I$15)=\"\",\"\",YEAR($I$15)+6)","v":1906},{"$f":"IF(YEAR($I$15)=\"\",\"\",YEAR($I$15)+7)","v":1907},{"$f":"IF(YEAR($I$15)=\"\",\"\",YEAR($I$15)+8)","v":1908},{"$f":"IF(YEAR($I$15)=\"\",\"\",YEAR($I$15)+9)","v":1909}]
[null,null,null,"Activo não corrente"]
[null,null,null,"activos fixos tangíveis"]
[null,null,null,"Propriedades de investimento"]
[null,null,null,"Goodwill"]
[null,null,null,"Activos Intangíveis"]
[null,null,null,"Activos biológicos"]
[null,null,null,"Participações financeiras - método da equivalência patrimonial"]
[null,null,null,"Participações financeiras - outros métodos"]
[null,null,null,"Accionistas/sócios"]
[null,null,null,"Outros activos financeiros"]
[null,null,null,"Activos por impostos diferidos"]
[null,null,null,null,null,null,null,null,null,null,null,null,null,null,null,null,{"$f":"+Q20+Q21+Q22+Q23+Q24+Q25+Q26+Q27+Q28+Q29","v":0},{"$f":"+R20+R21+R22+R23+R24+R25+R26+R27+R28+R29","v":0},0,0,0,0,0,0,0,0]
[null,null,null,"Activo corrente"]
[null,null,null,"Inventários "]
[null,null,null,"Activos biológicos"]
[null,null,null,"Clientes"]
[null,null,null,"Adiantamentos a fornecedores"]
[null,null,null,"Estado e outros entes públicos"]
[null,null,null,"Accionistas/sócios"]
[null,null,null,"Outras contas a receber"]
[null,null,null,"Diferimentos"]
[null,null,null,"Activos financeiros detidos para negociação"]
[null,null,null,"Outros activos financeiros"]
[null,null,null,"Activos não correntes detidos para venda"]
[null,null,null,"Caixa e depósitos bancários"]
[null,null,null,null,null,null,null,null,null,null,null,null,null,null,null,null,{"$f":"+Q32+Q33+Q34+Q35+Q36+Q37+Q38+Q39+Q40+Q41+Q42+Q43","v":0},{"$f":"+R32+R33+R34+R35+R36+R37+R38+R39+R40+R41+R42+R43","v":0},0,0,0,0,0,0,0,0]
[null,null,null,"TOTAL DO ACTIVO",null,null,null,null,null,null,null,null,null,null,null,null,{"$f":"+Q30+Q44","v":0},0,0,0,0,0,0,0,0,0]
[]
[null,null,null,"CAPITAL PRÓPRIO E PASSIVO"]
[null,null,null,"CAPITAL PRÓPRIO  "]
[null,null,null,"Capital realizado"]
[null,null,null,"Acções (quotas) próprias "]
[null,null,null,"Outros instrumentos de capital próprio"]
[null,null,null,"Prémios de emissão"]
[null,null,null,"Reservas legais"]
[null,null,null,"Outras reservas"]
[null,null,null,"Resultados transitados"]
[null,null,null,"Ajustamentos em activos financeiros"]
[null,null,null,"Excedentes de revalorização"]
[null,null,null,"Outras variações no capital próprio"]
[null,null,null,"Resultado líquido do período "]
[null,null,null,"Interesses minoritários"]
[null,null,null,"Total do capital próprio",null,null,null,null,null,null,null,null,null,null,null,null,{"$f":"+Q48+Q49+Q50+Q51+Q52+Q53+Q54+Q55+Q56+Q57+Q58+Q59+Q60","v":0},0,0,0,0,0,0,0,0,0]
[]
[null,null,null,"Passivo"]
[null,null,null,"Passivo não corrente"]
[null,null,null,"Provisões"]
[null,null,null,"Financiamentos obtidos"]
[null,null,null,"Responsabilidades por belefícios pós-emprego"]
[null,null,null,"Passivos por impostos diferidos"]
[null,null,null,"Outras contas a pagar"]
[null,null,null,null,null,null,null,null,null,null,null,null,null,null,null,null,{"$f":"++Q65+Q66+Q67+Q68+Q69","v":0},{"$f":"+R63+R64+R65+R66+R67+R68+R69","v":0},0,0,0,0,0,0,0,0]
[null,null,null,"Passivo corrente"]
[null,null,null,"Fornecedores"]
[null,null,null,"Adiantamento de clientes"]
[null,null,null,"Estado e outros entes públicos"]
[null,null,null,"Accionistas/sócios"]
[null,null,null,"Financiamentos obtidos"]
[null,null,null,"Outras contas a pagar"]
[null,null,null,"Diferimentos"]
[null,null,null,"Passivos financeiros detidos para negociação"]
[null,null,null,"Outros passivos financeiros"]
[null,null,null,"Passivos não correntes detidos para venda"]
[null,null,null,null,null,null,null,null,null,null,null,null,null,null,null,null,{"$f":"+Q72+Q73+Q74+Q75+Q76+Q77+Q78+Q79+Q80+Q81","v":0},{"$f":"+R72+R73+R74+R75+R76+R77+R78+R79+R80+R81","v":0},0,0,0,0,0,0,0,0]
[null,null,null,"Total do passivo",null,null,null,null,null,null,null,null,null,null,null,null,{"$f":"+Q70+Q82","v":0},0,0,0,0,0,0,0,0,0]
[null,null,null,"Total do capital próprio e do passivo",null,null,null,null,null,null,null,null,null,null,null,null,{"$f":"+Q61+Q83","v":0},0,0,0,0,0,0,0,0,0]

{"sheet":"D. Resultados empresa","index":13,"n_rows":54,"n_cols":18,"rows_kept":54,"cut":false,"hidden":false,"merged":[[49,3,49,13],[49,14,49,15],[46,3,46,13],[46,14,46,15],[47,3,47,13],[47,14,47,15],[41,3,41,13],[43,3,43,13],[43,14,43,15],[45,3,45,13],[45,14,45,15],[38,3,38,13],[39,3,39,13],[40,3,40,13],[35,3,35,13],[36,3,36,13],[37,3,37,13],[32,3,32,13],[33,3,33,13],[34,3,34,13],[29,3,29,13],[30,3,30,13],[31,3,31,13],[26,3,26,13],[27,3,27,13],[28,3,28,13],[23,3,23,13],[24,3,24,13],[25,3,25,13],[19,3,19,13],[22,3,22,13],[16,3,16,13],[17,3,17,13],[17,14,17,15],[18,3,18,13],[3,2,3,17],[6,2,6,5],[10,2,10,17],[12,2,12,18],[15,16,15,17],[51,3,51,13],[51,14,51,15],[52,3,52,13],[52,14,52,15],[53,3,53,13],[53,14,53,15]]}
[]
[null,null,"BENEFICIÁRIO:"]
[]
[null,null,{"$f":"+CAPA!C9","v":0}]
[]
[null,null,"NIF:"]
[null,null,{"$f":"+CAPA!C12","v":0}]
[]
[null,null,"SISTEMA DE INCENTIVOS:"]
[]
[null,null,{"$f":"+CAPA!C16","v":"VALORIZAR 2020 - Terceira alteração"}]
[]
[null,null,"DEMONSTRAÇÃO DE RESULTADOS pré candidatura"]
[null,null,"  "]
[]
[null,null,null,null,null,null,null,null,null,null,null,null,null,null,null,null,"EMPRESA PRÉ CANDIDATURA"]
[null,null,null,null,null,null,null,null,null,null,null,null,null,null,"Notas",null,{"$f":"+'Balanço empresa '!Q18","v":1898},{"$f":"+'Balanço empresa '!R18","v":1899}]
[null,null,null,"RENDIMENTOS E GASTOS"]
[null,null,null,"Vendas e serviços prestados",null,null,null,null,null,null,null,null,null,null,null,"+"]
[null,null,null,"Subsídios à exploração",null,null,null,null,null,null,null,null,null,null,null,"+"]
[null,null,null,"Ganhos/perdas imputados de subsidiárias, associadas e empreendimentos conjuntos",null,null,null,null,null,null,null,null,null,null,null,"+/-"]
[null,null,null,"Variação nos inventários da produção",null,null,null,null,null,null,null,null,null,null,null,"+/-"]
[null,null,null,"Trabalhos para a própria entidade",null,null,null,null,null,null,null,null,null,null,null,"+"]
[null,null,null,"Custo das mercadorias vendidas e das matérias consumidas",null,null,null,null,null,null,null,null,null,null,null,"-"]
[null,null,null,"Fornecimentos e serviços externos",null,null,null,null,null,null,null,null,null,null,null,"-"]
[null,null,null,"Gastos com o pessoal",null,null,null,null,null,null,null,null,null,null,null,"-"]
[null,null,null,"Imparidade de inventários (perdas/reversões)",null,null,null,null,null,null,null,null,null,null,null,"-/+"]
[null,null,null,"Imparidade de dívidas a receber (perdas/reversões)",null,null,null,null,null,null,null,null,null,null,null,"-/+"]
[null,null,null,"Provisões (perdas/reduções)",null,null,null,null,null,null,null,null,null,null,null,"-/+"]
[null,null,null,"Imparidade de investimentos não depreciáveis/amortizações (perdas/reversões)",null,null,null,null,null,null,null,null,null,null,null,"-/+"]
[null,null,null,"Aumentos/reduções de justo valor",null,null,null,null,null,null,null,null,null,null,null,"+/-"]
[null,null,null,"Outros rendimentos e ganhos",null,null,null,null,null,null,null,null,null,null,null,"+"]
[null,null,null,"Outros gastos e perdas",null,null,null,null,null,null,null,null,null,null,null,"-"]
[null,null,null,"Resultados antes de depreciações, gastos de financiamento e impostos",null,null,null,null,null,null,null,null,null,null,null,"=",{"$f":"SUM(Q19:Q33)","v":0},{"$f":"SUM(R19:R33)","v":0}]
[null,null,null,"Gastos/reversões de depreciação e de amortização",null,null,null,null,null,null,null,null,null,null,null,"-/+"]
[null,null,null,"Imparidade de investimentos depreciáveis/amorizáveis (perdas/reversões)",null,null,null,null,null,null,null,null,null,null,null,"-/+"]
[null,null,null,"Resultado operacional (antes de gastos de financiamento e impostos)",null,null,null,null,null,null,null,null,null,null,null,"=",{"$f":"+Q34+Q35+Q36","v":0},{"$f":"+R34+R35+R36","v":0}]
[null,null,null,"Juros e rendimentos similares obtidos",null,null,null,null,null,null,null,null,null,null,null,"+"]
[null,null,null,"Juros e gastos similares suportados",null,null,null,null,null,null,null,null,null,null,null,"-"]
[null,null,null,"Resultado antes de impostos",null,null,null,null,null,null,null,null,null,null,null,"=",{"$f":"+Q37+Q38+Q39","v":0},{"$f":"+R37+R38+R39","v":0}]
[null,null,null,"Imposto sobre o rendimento do período",null,null,null,null,null,null,null,null,null,null,null,"-/+"]
[null,null,null,"Resultado líquido do período",null,null,null,null,null,null,null,null,null,null,null,"=",{"$f":"+Q40+Q41","v":0},{"$f":"+R40+R41","v":0}]
[]
[null,null,null,"Resultado das actividades descontinuadas (líquido de impostos) incluido no resultado líquido do período"]
[]
[null,null,null,"Resultado líquido do período atribuível a: (2)"]
[null,null,null,"Detentores do capital da empresa-mãe"]
[null,null,null,"Interesses minoritários"]
[null,null,null,null,null,null,null,null,null,null,null,null,null,null,null,"=",{"$f":"+Q47+Q48","v":0},{"$f":"+R47+R48","v":0}]
[null,null,null,"Resultado por acção básico"]
[]
[null,null,null,"Outros Dados"]
[null,null,null,"Gastos de Amortização"]
[null,null,null,"Volume de Negócios Internacional "]

{"sheet":"D. Result da empresa pós Proj","index":14,"n_rows":54,"n_cols":26,"rows_kept":54,"cut":false,"hidden":false,"merged":[[49,3,49,13],[49,14,49,15],[46,3,46,13],[46,14,46,15],[47,3,47,13],[47,14,47,15],[41,3,41,13],[43,3,43,13],[43,14,43,15],[45,3,45,13],[45,14,45,15],[38,3,38,13],[39,3,39,13],[40,3,40,13],[35,3,35,13],[36,3,36,13],[37,3,37,13],[32,3,32,13],[33,3,33,13],[34,3,34,13],[29,3,29,13],[30,3,30,13],[31,3,31,13],[26,3,26,13],[27,3,27,13],[28,3,28,13],[23,3,23,13],[24,3,24,13],[25,3,25,13],[19,3,19,13],[22,3,22,13],[16,3,16,13],[17,3,17,13],[17,14,17,15],[18,3,18,13],[3,2,3,17],[6,2,6,5],[10,2,10,17],[12,2,12,26],[15,16,15,25],[51,3,51,13],[51,14,51,15],[52,3,52,13],[52,14,52,15],[53,3,53,13],[53,14,53,15]]}
[]
[null,null,"BENEFICIÁRIO:"]
[]
[null,null,{"$f":"+CAPA!C9","v":0}]
[]
[null,null,"NIF:"]
[null,null,{"$f":"+CAPA!C12","v":0}]
[]
[null,null,"SISTEMA DE INCENTIVOS:"]
[]
[null,null,{"$f":"+CAPA!C16","v":"VALORIZAR 2020 - Terceira alteração"}]
[]
[null,null,"DEMONSTRAÇÃO DE RESULTADOS DA EMPRESA PÓS PROJECTO"]
[null,null,"  "]
[]
[null,null,null,null,null,null,null,null,null,null,null,null,null,null,null,null,"EMPRESA PÓS PROJETO"]
[null,null,null,null,null,null,null,null,null,null,null,null,null,null,"Notas",null,{"$f":"+'Balanço do Projeto'!Q18","v":1900},{"$f":"+'Balanço do Projeto'!R18","v":1901},{"$f":"+'Balanço do Projeto'!S18","v":1902},{"$f":"+'Balanço do Projeto'!T18","v":1903},{"$f":"+'Balanço do Projeto'!U18","v":1904},{"$f":"+'Balanço do Projeto'!V18","v":1905},{"$f":"+'Balanço do Projeto'!W18","v":1906},{"$f":"+'Balanço do Projeto'!X18","v":1907},{"$f":"+'Balanço do Projeto'!Y18","v":1908},{"$f":"+'Balanço do Projeto'!Z18","v":1909}]
[null,null,null,"RENDIMENTOS E GASTOS"]
[null,null,null,"Vendas e serviços prestados",null,null,null,null,null,null,null,null,null,null,null,"+"]
[null,null,null,"Subsídios à exploração",null,null,null,null,null,null,null,null,null,null,null,"+"]
[null,null,null,"Ganhos/perdas imputados de subsidiárias, associadas e empreendimentos conjuntos",null,null,null,null,null,null,null,null,null,null,null,"+/-"]
[null,null,null,"Variação nos inventários da produção",null,null,null,null,null,null,null,null,null,null,null,"+/-"]
[null,null,null,"Trabalhos para a própria entidade",null,null,null,null,null,null,null,null,null,null,null,"+"]
[null,null,null,"Custo das mercadorias vendidas e das matérias consumidas",null,null,null,null,null,null,null,null,null,null,null,"-"]
[null,null,null,"Fornecimentos e serviços externos",null,null,null,null,null,null,null,null,null,null,null,"-"]
[null,null,null,"Gastos com o pessoal",null,null,null,null,null,null,null,null,null,null,null,"-"]
[null,null,null,"Imparidade de inventários (perdas/reversões)",null,null,null,null,null,null,null,null,null,null,null,"-/+"]
[null,null,null,"Imparidade de dívidas a receber (perdas/reversões)",null,null,null,null,null,null,null,null,null,null,null,"-/+"]
[null,null,null,"Provisões (perdas/reduções)",null,null,null,null,null,null,null,null,null,null,null,"-/+"]
[null,null,null,"Imparidade de investimentos não depreciáveis/amortizações (perdas/reversões)",null,null,null,null,null,null,null,null,null,null,null,"-/+"]
[null,null,null,"Aumentos/reduções de justo valor",null,null,null,null,null,null,null,null,null,null,null,"+/-"]
[null,null,null,"Outros rendimentos e ganhos",null,null,null,null,null,null,null,null,null,null,null,"+"]
[null,null,null,"Outros gastos e perdas",null,null,null,null,null,null,null,null,null,null,null,"-"]
[null,null,null,"Resultados antes de depreciações, gastos de financiamento e impostos",null,null,null,null,null,null,null,null,null,null,null,"=",{"$f":"SUM(Q19:Q33)","v":0},{"$f":"SUM(R19:R33)","v":0},0,0,0,0,0,0,0,0]
[null,null,null,"Gastos/reversões de depreciação e de amortização",null,null,null,null,null,null,null,null,null,null,null,"-/+"]
[null,null,null,"Imparidade de investimentos depreciáveis/amorizáveis (perdas/reversões)",null,null,null,null,null,null,null,null,null,null,null,"-/+"]
[null,null,null,"Resultado operacional (antes de gastos de financiamento e impostos)",null,null,null,null,null,null,null,null,null,null,null,"=",{"$f":"+Q34+Q35+Q36","v":0},0,0,0,0,0,0,0,0,0]
[null,null,null,"Juros e rendimentos similares obtidos",null,null,null,null,null,null,null,null,null,null,null,"+"]
[null,null,null,"Juros e gastos similares suportados",null,null,null,null,null,null,null,null,null,null,null,"-"]
[null,null,null,"Resultado antes de impostos",null,null,null,null,null,null,null,null,null,null,null,"=",{"$f":"+Q37+Q38+Q39","v":0},0,0,0,0,0,0,0,0,0]
[null,null,null,"Imposto sobre o rendimento do período",null,null,null,null,null,null,null,null,null,null,null,"-/+"]
[null,null,null,"Resultado líquido do período",null,null,null,null,null,null,null,null,null,null,null,"=",{"$f":"+Q40+Q41","v":0},0,0,0,0,0,0,0,0,0]
[]
[null,null,null,"Resultado das actividades descontinuadas (líquido de impostos) incluido no resultado líquido do período"]
[]
[null,null,null,"Resultado líquido do período atribuível a: (2)"]
[null,null,null,"Detentores do capital da empresa-mãe"]
[null,null,null,"Interesses minoritários"]
[null,null,null,null,null,null,null,null,null,null,null,null,null,null,null,"=",{"$f":"+Q47+Q48","v":0},0,0,0,0,0,0,0,0,0]
[null,null,null,"Resultado por acção básico"]
[]
[null,null,null,"Outros Dados"]
[null,null,null,"Gastos de Amortização"]
[null,null,null,"Volume de Negócios Internacional "]

{"sheet":"Balanço do Projeto","index":15,"n_rows":84,"n_cols":26,"rows_kept":84,"cut":false,"hidden":false,"merged":[[3,2,3,17],[6,2,6,5],[10,2,10,17],[12,2,12,26],[83,14,83,15],[72,14,72,15],[73,14,73,15],[74,14,74,15],[75,14,75,15],[76,14,76,15],[77,14,77,15],[78,14,78,15],[79,14,79,15],[80,14,80,15],[81,14,81,15],[82,14,82,15],[71,14,71,15],[59,14,59,15],[60,14,60,15],[62,14,62,15],[63,14,63,15],[64,14,64,15],[65,14,65,15],[66,14,66,15],[67,14,67,15],[68,14,68,15],[69,14,69,15],[70,14,70,15],[58,14,58,15],[47,14,47,15],[48,14,48,15],[49,14,49,15],[50,14,50,15],[51,14,51,15],[52,14,52,15],[53,14,53,15],[54,14,54,15],[55,14,55,15],[56,14,56,15],[57,14,57,15],[41,14,41,15],[42,14,42,15],[43,14,43,15],[44,14,44,15],[46,3,46,13],[46,14,46,15],[27,3,27,13],[27,14,27,15],[28,3,28,13],[28,14,28,15],[40,14,40,15],[30,3,30,13],[30,14,30,15],[31,14,31,15],[32,14,32,15],[33,14,33,15],[34,14,34,15],[35,14,35,15],[36,14,36,15],[37,14,37,15],[38,14,38,15],[39,14,39,15],[24,3,24,13],[24,14,24,15],[25,3,25,13],[25,14,25,15],[26,3,26,13],[26,14,26,15],[21,3,21,13],[21,14,21,15],[22,3,22,13],[22,14,22,15],[23,3,23,13],[23,14,23,15],[18,3,18,13],[18,14,18,15],[19,3,19,13],[19,14,19,15],[20,3,20,13],[20,14,20,15],[16,3,16,4],[16,16,16,25],[14,2,14,7],[14,8,14,10],[17,3,17,13],[17,14,17,15]]}
[]
[null,null,"BENEFICIÁRIO:"]
[]
[null,null,{"$f":"+CAPA!C9","v":0}]
[]
[null,null,"NIF:"]
[null,null,{"$f":"+CAPA!C12","v":0}]
[]
[null,null,"SISTEMA DE INCENTIVOS:"]
[]
[null,null,{"$f":"+CAPA!C16","v":"VALORIZAR 2020 - Terceira alteração"}]
[]
[null,null,"BALANÇO DO PROJETO"]
[]
[null,null,"Data de Inicio da despesa:",null,null,null,null,null,{"$f":"+'Balanço da empresa pós Proj'!I15:K15","v":"00:00:00"}]
[]
[null,null,null,"(euros)",null,null,null,null,null,null,null,null,null,null,null,null,"Projecto"]
[null,null,null,"ACTIVO",null,null,null,null,null,null,null,null,null,null,"Notas",null,{"$f":"IF(YEAR($I$15)=\"\",\"\",YEAR($I$15))","v":1900},{"$f":"IF(YEAR($I$15)=\"\",\"\",YEAR($I$15)+1)","v":1901},{"$f":"IF(YEAR($I$15)=\"\",\"\",YEAR($I$15)+2)","v":1902},{"$f":"IF(YEAR($I$15)=\"\",\"\",YEAR($I$15)+3)","v":1903},{"$f":"IF(YEAR($I$15)=\"\",\"\",YEAR($I$15)+4)","v":1904},{"$f":"IF(YEAR($I$15)=\"\",\"\",YEAR($I$15)+5)","v":1905},{"$f":"IF(YEAR($I$15)=\"\",\"\",YEAR($I$15)+6)","v":1906},{"$f":"IF(YEAR($I$15)=\"\",\"\",YEAR($I$15)+7)","v":1907},{"$f":"IF(YEAR($I$15)=\"\",\"\",YEAR($I$15)+8)","v":1908},{"$f":"IF(YEAR($I$15)=\"\",\"\",YEAR($I$15)+9)","v":1909}]
[null,null,null,"Activo não corrente"]
[null,null,null,"activos fixos tangíveis"]
[null,null,null,"Propriedades de investimento"]
[null,null,null,"Goodwill"]
[null,null,null,"Activos Intangíveis"]
[null,null,null,"Activos biológicos"]
[null,null,null,"Participações financeiras - método da equivalência patrimonial"]
[null,null,null,"Participações financeiras - outros métodos"]
[null,null,null,"Accionistas/sócios"]
[null,null,null,"Outros activos financeiros"]
[null,null,null,"Activos por impostos diferidos"]
[null,null,null,null,null,null,null,null,null,null,null,null,null,null,null,null,{"$f":"+Q20+Q21+Q22+Q23+Q24+Q25+Q26+Q27+Q28+Q29","v":0},{"$f":"+R20+R21+R22+R23+R24+R25+R26+R27+R28+R29","v":0},0,0,0,0,0,0,0,0]
[null,null,null,"Activo corrente"]
[null,null,null,"Inventários "]
[null,null,null,"Activos biológicos"]
[null,null,null,"Clientes"]
[null,null,null,"Adiantamentos a fornecedores"]
[null,null,null,"Estado e outros entes públicos"]
[null,null,null,"Accionistas/sócios"]
[null,null,null,"Outras contas a receber"]
[null,null,null,"Diferimentos"]
[null,null,null,"Activos financeiros detidos para negociação"]
[null,null,null,"Outros activos financeiros"]
[null,null,null,"Activos não correntes detidos para venda"]
[null,null,null,"Caixa e depósitos bancários"]
[null,null,null,null,null,null,null,null,null,null,null,null,null,null,null,null,{"$f":"+Q32+Q33+Q34+Q35+Q36+Q37+Q38+Q39+Q40+Q41+Q42+Q43","v":0},{"$f":"+R32+R33+R34+R35+R36+R37+R38+R39+R40+R41+R42+R43","v":0},0,0,0,0,0,0,0,0]
[null,null,null,"TOTAL DO ACTIVO",null,null,null,null,null,null,null,null,null,null,null,null,{"$f":"+Q30+Q44","v":0},0,0,0,0,0,0,0,0,0]
[]
[null,null,null,"CAPITAL PRÓPRIO E PASSIVO"]
[null,null,null,"CAPITAL PRÓPRIO  "]
[null,null,null,"Capital realizado"]
[null,null,null,"Acções (quotas) próprias "]
[null,null,null,"Outros instrumentos de capital próprio"]
[null,null,null,"Prémios de emissão"]
[null,null,null,"Reservas legais"]
[null,null,null,"Outras reservas"]
[null,null,null,"Resultados transitados"]
[null,null,null,"Ajustamentos em activos financeiros"]
[null,null,null,"Excedentes de revalorização"]
[null,null,null,"Outras variações no capital próprio"]
[null,null,null,"Resultado líquido do período "]
[null,null,null,"Interesses minoritários"]
[null,null,null,"Total do capital próprio",null,null,null,null,null,null,null,null,null,null,null,null,{"$f":"+Q49+Q50+Q51+Q52+Q53+Q54+Q55+Q56+Q57+Q58+Q59+Q60","v":0},{"$f":"+R49+R50+R51+R52+R53+R54+R55+R56+R57+R58+R59+R60","v":0},0,0,0,0,0,0,0,0]
[]
[null,null,null,"Passivo"]
[null,null,null,"Passivo não corrente"]
[null,null,null,"Provisões"]
[null,null,null,"Financiamentos obtidos"]
[null,null,null,"Responsabilidades por belefícios pós-emprego"]
[null,null,null,"Passivos por impostos diferidos"]
[null,null,null,"Outras contas a pagar"]
[null,null,null,null,null,null,null,null,null,null,null,null,null,null,null,null,{"$f":"++Q65+Q66+Q67+Q68+Q69","v":0},{"$f":"++R65+R66+R67+R68+R69","v":0},0,0,0,0,0,0,0,0]
[null,null,null,"Passivo corrente"]
[null,null,null,"Fornecedores"]
[null,null,null,"Adiantamento de clientes"]
[null,null,null,"Estado e outros entes públicos"]
[null,null,null,"Accionistas/sócios"]
[null,null,null,"Financiamentos obtidos"]
[null,null,null,"Outras contas a pagar"]
[null,null,null,"Diferimentos"]
[null,null,null,"Passivos financeiros detidos para negociação"]
[null,null,null,"Outros passivos financeiros"]
[null,null,null,"Passivos não correntes detidos para venda"]
[null,null,null,null,null,null,null,null,null,null,null,null,null,null,null,null,{"$f":"+Q72+Q73+Q74+Q75+Q76+Q77+Q78+Q79+Q80+Q81","v":0},{"$f":"+R72+R73+R74+R75+R76+R77+R78+R79+R80+R81","v":0},0,0,0,0,0,0,0,0]
[null,null,null,"Total do passivo",null,null,null,null,null,null,null,null,null,null,null,null,{"$f":"+Q70+Q82","v":0},0,0,0,0,0,0,0,0,0]
[null,null,null,"Total do capital próprio e do passivo",null,null,null,null,null,null,null,null,null,null,null,null,{"$f":"+Q61+Q83","v":0},0,0,0,0,0,0,0,0,0]

{"sheet":"D. Resultados do Projeto","index":16,"n_rows":50,"n_cols":26,"rows_kept":50,"cut":false,"hidden":false,"merged":[[3,2,3,17],[6,2,6,5],[10,2,10,17],[47,3,47,13],[47,14,47,15],[39,3,39,13],[40,3,40,13],[41,3,41,13],[36,3,36,13],[37,3,37,13],[38,3,38,13],[33,3,33,13],[34,3,34,13],[35,3,35,13],[30,3,30,13],[31,3,31,13],[49,3,49,13],[49,14,49,15],[43,3,43,13],[43,14,43,15],[45,3,45,13],[45,14,45,15],[46,3,46,13],[46,14,46,15],[32,3,32,13],[27,3,27,13],[28,3,28,13],[29,3,29,13],[24,3,24,13],[25,3,25,13],[26,3,26,13],[22,3,22,13],[23,3,23,13],[18,3,18,13],[19,3,19,13],[12,2,12,26],[15,16,15,25],[16,3,16,13],[17,3,17,13],[17,14,17,15]]}
[]
[null,null,"BENEFICIÁRIO:"]
[]
[null,null,{"$f":"+CAPA!C9","v":0}]
[]
[null,null,"NIF:"]
[null,null,{"$f":"+CAPA!C12","v":0}]
[]
[null,null,"SISTEMA DE INCENTIVOS:"]
[]
[null,null,{"$f":"+CAPA!C16","v":"VALORIZAR 2020 - Terceira alteração"}]
[]
[null,null,"DEMONSTRAÇÃO DE RESULTADOS DO PROJECTO"]
[null,null,"  "]
[]
[null,null,null,null,null,null,null,null,null,null,null,null,null,null,null,null,"Projecto"]
[null,null,null,null,null,null,null,null,null,null,null,null,null,null,"Notas",null,{"$f":"+'Balanço do Projeto'!Q18","v":1900},{"$f":"+'Balanço do Projeto'!R18","v":1901},{"$f":"+'Balanço do Projeto'!S18","v":1902},{"$f":"+'Balanço do Projeto'!T18","v":1903},{"$f":"+'Balanço do Projeto'!U18","v":1904},{"$f":"+'Balanço do Projeto'!V18","v":1905},{"$f":"+'Balanço do Projeto'!W18","v":1906},{"$f":"+'Balanço do Projeto'!X18","v":1907},{"$f":"+'Balanço do Projeto'!Y18","v":1908},{"$f":"+'Balanço do Projeto'!Z18","v":1909}]
[null,null,null,"RENDIMENTOS E GASTOS"]
[null,null,null,"Vendas e serviços prestados",null,null,null,null,null,null,null,null,null,null,null,"+"]
[null,null,null,"Subsídios à exploração",null,null,null,null,null,null,null,null,null,null,null,"+"]
[null,null,null,"Ganhos/perdas imputados de subsidiárias, associadas e empreendimentos conjuntos",null,null,null,null,null,null,null,null,null,null,null,"+/-"]
[null,null,null,"Variação nos inventários da produção",null,null,null,null,null,null,null,null,null,null,null,"+/-"]
[null,null,null,"Trabalhos para a própria entidade",null,null,null,null,null,null,null,null,null,null,null,"+"]
[null,null,null,"Custo das mercadorias vendidas e das matérias consumidas",null,null,null,null,null,null,null,null,null,null,null,"-"]
[null,null,null,"Fornecimentos e serviços externos",null,null,null,null,null,null,null,null,null,null,null,"-"]
[null,null,null,"Gastos com o pessoal",null,null,null,null,null,null,null,null,null,null,null,"-"]
[null,null,null,"Imparidade de inventários (perdas/reversões)",null,null,null,null,null,null,null,null,null,null,null,"-/+"]
[null,null,null,"Imparidade de dívidas a receber (perdas/reversões)",null,null,null,null,null,null,null,null,null,null,null,"-/+"]
[null,null,null,"Provisões (perdas/reduções)",null,null,null,null,null,null,null,null,null,null,null,"-/+"]
[null,null,null,"Imparidade de investimentos não depreciáveis/amortizações (perdas/reversões)",null,null,null,null,null,null,null,null,null,null,null,"-/+"]
[null,null,null,"Aumentos/reduções de justo valor",null,null,null,null,null,null,null,null,null,null,null,"+/-"]
[null,null,null,"Outros rendimentos e ganhos",null,null,null,null,null,null,null,null,null,null,null,"+"]
[null,null,null,"Outros gastos e perdas",null,null,null,null,null,null,null,null,null,null,null,"-"]
[null,null,null,"Resultados antes de depreciações, gastos de financiamento e impostos",null,null,null,null,null,null,null,null,null,null,null,"=",{"$f":"SUM(Q19:Q33)","v":0},{"$f":"SUM(R19:R33)","v":0},0,0,0,0,0,0,0,0]
[null,null,null,"Gastos/reversões de depreciação e de amortização",null,null,null,null,null,null,null,null,null,null,null,"-/+"]
[null,null,null,"Imparidade de investimentos depreciáveis/amorizáveis (perdas/reversões)",null,null,null,null,null,null,null,null,null,null,null,"-/+"]
[null,null,null,"Resultado operacional (antes de gastos de financiamento e impostos)",null,null,null,null,null,null,null,null,null,null,null,"=",{"$f":"+Q34+Q35+Q36","v":0},0,0,0,0,0,0,0,0,0]
[null,null,null,"Juros e rendimentos similares obtidos",null,null,null,null,null,null,null,null,null,null,null,"+"]
[null,null,null,"Juros e gastos similares suportados",null,null,null,null,null,null,null,null,null,null,null,"-"]
[null,null,null,"Resultado antes de impostos",null,null,null,null,null,null,null,null,null,null,null,"=",{"$f":"+Q37+Q38+Q39","v":0},0,0,0,0,0,0,0,0,0]
[null,null,null,"Imposto sobre o rendimento do período",null,null,null,null,null,null,null,null,null,null,null,"-/+"]
[null,null,null,"Resultado líquido do período",null,null,null,null,null,null,null,null,null,null,null,"=",{"$f":"+Q40+Q41","v":0},0,0,0,0,0,0,0,0,0]
[]
[null,null,null,"Resultado das actividades descontinuadas (líquido de impostos) incluido no resultado líquido do período"]
[]
[null,null,null,"Resultado líquido do período atribuível a: (2)"]
[null,null,null,"Detentores do capital da empresa-mãe"]
[null,null,null,"Interesses minoritários"]
[null,null,null,null,null,null,null,null,null,null,null,null,null,null,null,"=",{"$f":"+Q47+Q48","v":0},0,0,0,0,0,0,0,0,0]
[null,null,null,"Resultado por acção básico"]

{"sheet":"Folha2","index":17,"n_rows":8,"n_cols":3,"rows_kept":8,"cut":false,"hidden":true,"merged":[]}
[]
[]
[null,null,"Sistemas de Incentivos"]
[null,null,"----- Escolha -----"]
[null,null,"INOVAR 2020"]
[null,null,"EMPREENDER 2020"]
[null,null,"INTERNACIONALIZAR 2020"]
[null,null,"PROCiência 2020"]